Workbook

Sheet Reporting
B2: JOURNAL DE BORD des Certificats de vie enveloppe T | K2: 2023 | L2: 1 | V2: =IF(L2=1,2,IF(L2=2,4,IF(L2=3,5,""))) -> 2
U3: =HLOOKUP(C12,INDIRECT($K$2&"!$I$4:$P$8"),V2,FALSE) -> 123902
U5: =HLOOKUP(E12,INDIRECT($K$2&"!$I$4:$P$8"),V2,FALSE) -> 106409
U6: =HLOOKUP(G12,INDIRECT($K$2&"!$I$4:$P$8"),V2,FALSE) -> 0.8588158383
U7: =HLOOKUP(I12,INDIRECT($K$2&"!$I$4:$P$8"),V2,FALSE) -> 108537
O8: =HLOOKUP(O10,INDIRECT($K$2&"!$I$4:$P$8"),V2,FALSE) -> 2023-06-22 | Q8: =HLOOKUP(Q10,INDIRECT($K$2&"!$I$4:$P$8"),V2,FALSE) -> 2023-09-30 | U8: =HLOOKUP(K12,INDIRECT($K$2&"!$I$4:$P$8"),V2,FALSE) -> 0.8759907023
O10: PÉRIODE DÉBUT | Q10: PÉRIODE FIN
C12: Certificats envoyé | E12: certifcats Reçus | G12: % Reçu | I12: certifcats scannés | K12: % Scanné

Sheet graphique
A1: Mes graphiques
A3: 1
A33: 2

Sheet 2023
C1: Certificats 2023
I4: ID | J4: PÉRIODE DÉBUT | K4: PÉRIODE FIN | L4: Certificats envoyé | M4: certifcats Reçus | N4: % reçu | O4: certifcats scannés | P4: % Scanné
B5: Date | C5: CHIFFRE jour | D5: TOTAL | E5: certifcats scannés | F5: Total | I5: 1 | J5: 2023-06-22 | K5: 2023-09-30 | L5: 123902 | M5: =SUM(C7:C107) -> 106409 | N5: =M5/L5 -> 0.8588158383 | O5: =SUM(E7:E107) -> 108537 | P5: =O5/L5 -> 0.8759907023 | R5: MOIS | S5: Certificats Reçu | T5: Certificats Scanné
B6: DATE | C6: KILOMÉTRAGE 1 | D6: KILOMÈTRES | E6: Colonne2 | F6: Colonne4 | G6: Colonne5 | R6: 2023-06-01
B7: 2023-06-22 | C7: 148 | D7: 148 | E7: 8 | F7: 8 | G7: 123902 | I7: 2 | J7: 2023-10-01 | K7: 2024-09-30 | L7: 66693 | M7: =SUM(C108:C381) -> 44691.58 | N7: =M7/L7 -> 0.6701090069 | O7: =SUM(E108:E381) -> 48338 | P7: =O7/L7 -> 0.7247837104 | R7: 2023-06-01 | S7: =D15 -> 30507 | T7: =SUM(E7:E15) -> 24
B8: 2023-06-23 | C8: 1411 | D8: =D7+Données[[#This Row],[KILOMÉTRAGE 1]] -> 1559 | E8: 0 | F8: =F7+Données[[#This Row],[Colonne2]] -> 8 | G8: 123902 | I8: 3 | J8: 2023-06-22 | K8: 2024-09-30 | L8: =SUM(L5:L7) -> 190595 | M8: =SUM(M5:M7) -> 151100.58 | N8: =M8/L8 -> 0.7927835463 | O8: =SUM(O5:O7) -> 156875 | P8: =O8/L8 -> 0.8230803536 | R8: 2023-07-01 | S8: =SUM(C16:C46) -> 71295 | T8: =SUM(E16:E46) -> 78382
B9: 2023-06-24 | C9: 0 | D9: =D8+Données[[#This Row],[KILOMÉTRAGE 1]] -> 1559 | E9: 0 | F9: =F8+Données[[#This Row],[Colonne2]] -> 8 | G9: 123902 | R9: 2023-08-01 | S9: =SUM(C47:C77) -> 3268 | T9: =SUM(E47:E77) -> 29227
B10: 2023-06-25 | C10: 0 | D10: =D9+Données[[#This Row],[KILOMÉTRAGE 1]] -> 1559 | E10: 0 | F10: =F9+Données[[#This Row],[Colonne2]] -> 8 | G10: 123902 | R10: 2023-09-01 | S10: =SUM(C78:C107) -> 1339 | T10: =SUM(E78:E107) -> 904
B11: 2023-06-26 | C11: 4545 | D11: =D10+Données[[#This Row],[KILOMÉTRAGE 1]] -> 6104 | E11: 12 | F11: =F10+Données[[#This Row],[Colonne2]] -> 20 | G11: 123902 | R11: 2023-10-01 | S11: =SUM(C108:C138) -> 13886 | T11: =SUM(E108:E138) -> 593
B12: 2023-06-27 | C12: 11134 | D12: =D11+Données[[#This Row],[KILOMÉTRAGE 1]] -> 17238 | E12: 0 | F12: =F11+Données[[#This Row],[Colonne2]] -> 20 | G12: 123902 | R12: 2023-11-01 | S12: =SUM(C139:C168) -> 26946 | T12: =SUM(E139:E168) -> 0
B13: 2023-06-28 | C13: 6020 | D13: =D12+Données[[#This Row],[KILOMÉTRAGE 1]] -> 23258 | E13: 4 | F13: =F12+Données[[#This Row],[Colonne2]] -> 24 | G13: 123902 | R13: 2023-12-01 | S13: =SUM(C169:C199) -> 2463 | T13: =SUM(E169:E199) -> 3847
B14: 2023-06-29 | C14: 764 | D14: =D13+Données[[#This Row],[KILOMÉTRAGE 1]] -> 24022 | E14: 0 | F14: =F13+Données[[#This Row],[Colonne2]] -> 24 | G14: 123902 | R14: 2024-01-01 | S14: =SUM(C200:C230) -> 686 | T14: =SUM(E200:E230) -> 10162
B15: 2023-06-30 | C15: 6485 | D15: =D14+Données[[#This Row],[KILOMÉTRAGE 1]] -> 30507 | E15: 0 | F15: =F14+Données[[#This Row],[Colonne2]] -> 24 | G15: 123902 | R15: 2024-02-01 | S15: =SUM(C231:C259) -> 284 | T15: =SUM(E231:E259) -> 22048
B16: 2023-07-01 | C16: 0 | D16: =D15+Données[[#This Row],[KILOMÉTRAGE 1]] -> 30507 | E16: 0 | F16: =F15+Données[[#This Row],[Colonne2]] -> 24 | G16: 123902 | R16: 2024-03-01 | S16: =SUM(C260:C290) -> 128 | T16: =SUM(E260:E290) -> 11158
B17: 2023-07-02 | C17: 0 | D17: =D16+Données[[#This Row],[KILOMÉTRAGE 1]] -> 30507 | E17: 0 | F17: =F16+Données[[#This Row],[Colonne2]] -> 24 | G17: 123902 | R17: 2024-04-01 | S17: =SUM(C291:C320) -> 103 | T17: =SUM(E291:E320) -> 283
B18: 2023-07-03 | C18: 23815 | D18: =D17+Données[[#This Row],[KILOMÉTRAGE 1]] -> 54322 | E18: 0 | F18: =F17+Données[[#This Row],[Colonne2]] -> 24 | G18: 123902 | R18: 2024-05-01 | S18: =SUM(C321:C351) -> 97 | T18: =SUM(E321:E351) -> 157
B19: 2023-07-04 | C19: 4215 | D19: =D18+Données[[#This Row],[KILOMÉTRAGE 1]] -> 58537 | E19: 852 | F19: =F18+Données[[#This Row],[Colonne2]] -> 876 | G19: 123902 | R19: 2024-06-01 | S19: =SUM(C352:C381) -> 98.58 | T19: =SUM(E352:E381) -> 90
B20: 2023-07-05 | C20: 5208 | D20: =D19+Données[[#This Row],[KILOMÉTRAGE 1]] -> 63745 | E20: 2686 | F20: =F19+Données[[#This Row],[Colonne2]] -> 3562 | G20: 123902
B21: 2023-07-06 | C21: 4507 | D21: =D20+Données[[#This Row],[KILOMÉTRAGE 1]] -> 68252 | E21: 3024 | F21: =F20+Données[[#This Row],[Colonne2]] -> 6586 | G21: 123902
B22: 2023-07-07 | C22: 4457 | D22: =D21+Données[[#This Row],[KILOMÉTRAGE 1]] -> 72709 | E22: 2496 | F22: =F21+Données[[#This Row],[Colonne2]] -> 9082 | G22: 123902
B23: 2023-07-08 | C23: 0 | D23: =D22+Données[[#This Row],[KILOMÉTRAGE 1]] -> 72709 | E23: 0 | F23: =F22+Données[[#This Row],[Colonne2]] -> 9082 | G23: 123902
B24: 2023-07-09 | C24: 0 | D24: =D23+Données[[#This Row],[KILOMÉTRAGE 1]] -> 72709 | E24: 0 | F24: =F23+Données[[#This Row],[Colonne2]] -> 9082 | G24: 123902
B25: 2023-07-10 | C25: 7807 | D25: =D24+Données[[#This Row],[KILOMÉTRAGE 1]] -> 80516 | E25: 4226 | F25: =F24+Données[[#This Row],[Colonne2]] -> 13308 | G25: 123902
B26: 2023-07-11 | C26: 5604 | D26: =D25+Données[[#This Row],[KILOMÉTRAGE 1]] -> 86120 | E26: 4930 | F26: =F25+Données[[#This Row],[Colonne2]] -> 18238 | G26: 123902
B27: 2023-07-12 | C27: 4597 | D27: =D26+Données[[#This Row],[KILOMÉTRAGE 1]] -> 90717 | E27: 5028 | F27: =F26+Données[[#This Row],[Colonne2]] -> 23266 | G27: 123902
B28: 2023-07-13 | C28: 1578 | D28: =D27+Données[[#This Row],[KILOMÉTRAGE 1]] -> 92295 | E28: 4920 | F28: =F27+Données[[#This Row],[Colonne2]] -> 28186 | G28: 123902
B29: 2023-07-14 | C29: 0 | D29: =D28+Données[[#This Row],[KILOMÉTRAGE 1]] -> 92295 | E29: 0 | F29: =F28+Données[[#This Row],[Colonne2]] -> 28186 | G29: 123902
B30: 2023-07-15 | C30: 0 | D30: =D29+Données[[#This Row],[KILOMÉTRAGE 1]] -> 92295 | E30: 0 | F30: =F29+Données[[#This Row],[Colonne2]] -> 28186 | G30: 123902
B31: 2023-07-16 | C31: 0 | D31: =D30+Données[[#This Row],[KILOMÉTRAGE 1]] -> 92295 | E31: 0 | F31: =F30+Données[[#This Row],[Colonne2]] -> 28186 | G31: 123902
B32: 2023-07-17 | C32: 2420 | D32: =D31+Données[[#This Row],[KILOMÉTRAGE 1]] -> 94715 | E32: 4988 | F32: =F31+Données[[#This Row],[Colonne2]] -> 33174 | G32: 123902
B33: 2023-07-18 | C33: 824 | D33: =D32+Données[[#This Row],[KILOMÉTRAGE 1]] -> 95539 | E33: 6895 | F33: =F32+Données[[#This Row],[Colonne2]] -> 40069 | G33: 123902
B34: 2023-07-19 | C34: 828 | D34: =D33+Données[[#This Row],[KILOMÉTRAGE 1]] -> 96367 | E34: 5759 | F34: =F33+Données[[#This Row],[Colonne2]] -> 45828 | G34: 123902
B35: 2023-07-20 | C35: 887 | D35: =D34+Données[[#This Row],[KILOMÉTRAGE 1]] -> 97254 | E35: 6126 | F35: =F34+Données[[#This Row],[Colonne2]] -> 51954 | G35: 123902
B36: 2023-07-21 | C36: 824 | D36: =D35+Données[[#This Row],[KILOMÉTRAGE 1]] -> 98078 | E36: 4015 | F36: =F35+Données[[#This Row],[Colonne2]] -> 55969 | G36: 123902
B37: 2023-07-22 | C37: 0 | D37: =D36+Données[[#This Row],[KILOMÉTRAGE 1]] -> 98078 | E37: 0 | F37: =F36+Données[[#This Row],[Colonne2]] -> 55969 | G37: 123902
B38: 2023-07-23 | C38: 0 | D38: =D37+Données[[#This Row],[KILOMÉTRAGE 1]] -> 98078 | E38: 0 | F38: =F37+Données[[#This Row],[Colonne2]] -> 55969 | G38: 123902
B39: 2023-07-24 | C39: 2 | D39: =D38+Données[[#This Row],[KILOMÉTRAGE 1]] -> 98080 | E39: 6293 | F39: =F38+Données[[#This Row],[Colonne2]] -> 62262 | G39: 123902
B40: 2023-07-25 | C40: 2112 | D40: =D39+Données[[#This Row],[KILOMÉTRAGE 1]] -> 100192 | E40: 0 | F40: =F39+Données[[#This Row],[Colonne2]] -> 62262 | G40: 123902
B41: 2023-07-26 | C41: 349 | D41: =D40+Données[[#This Row],[KILOMÉTRAGE 1]] -> 100541 | E41: 0 | F41: =F40+Données[[#This Row],[Colonne2]] -> 62262 | G41: 123902
B42: 2023-07-27 | C42: 449 | D42: =D41+Données[[#This Row],[KILOMÉTRAGE 1]] -> 100990 | E42: 13266 | F42: =F41+Données[[#This Row],[Colonne2]] -> 75528 | G42: 123902
B43: 2023-07-28 | C43: 446 | D43: =D42+Données[[#This Row],[KILOMÉTRAGE 1]] -> 101436 | E43: 42 | F43: =F42+Données[[#This Row],[Colonne2]] -> 75570 | G43: 123902
B44: 2023-07-29 | C44: 0 | D44: =D43+Données[[#This Row],[KILOMÉTRAGE 1]] -> 101436 | E44: 0 | F44: =F43+Données[[#This Row],[Colonne2]] -> 75570 | G44: 123902
B45: 2023-07-30 | C45: 0 | D45: =D44+Données[[#This Row],[KILOMÉTRAGE 1]] -> 101436 | E45: 2836 | F45: =F44+Données[[#This Row],[Colonne2]] -> 78406 | G45: 123902
B46: 2023-07-31 | C46: 366 | D46: =D45+Données[[#This Row],[KILOMÉTRAGE 1]] -> 101802 | E46: 0 | F46: =F45+Données[[#This Row],[Colonne2]] -> 78406 | G46: 123902
B47: 2023-08-01 | C47: 574 | D47: =D46+Données[[#This Row],[KILOMÉTRAGE 1]] -> 102376 | E47: 8377 | F47: =F46+Données[[#This Row],[Colonne2]] -> 86783 | G47: 123902
B48: 2023-08-02 | C48: 0 | D48: =D47+Données[[#This Row],[KILOMÉTRAGE 1]] -> 102376 | E48: 1 | F48: =F47+Données[[#This Row],[Colonne2]] -> 86784 | G48: 123902
B49: 2023-08-03 | C49: 473 | D49: =D48+Données[[#This Row],[KILOMÉTRAGE 1]] -> 102849 | E49: 3132 | F49: =F48+Données[[#This Row],[Colonne2]] -> 89916 | G49: 123902
B50: 2023-08-04 | C50: 270 | D50: =D49+Données[[#This Row],[KILOMÉTRAGE 1]] -> 103119 | E50: 0 | F50: =F49+Données[[#This Row],[Colonne2]] -> 89916 | G50: 123902
B51: 2023-08-05 | C51: 0 | D51: =D50+Données[[#This Row],[KILOMÉTRAGE 1]] -> 103119 | E51: 0 | F51: =F50+Données[[#This Row],[Colonne2]] -> 89916 | G51: 123902
B52: 2023-08-06 | C52: 0 | D52: =D51+Données[[#This Row],[KILOMÉTRAGE 1]] -> 103119 | E52: 0 | F52: =F51+Données[[#This Row],[Colonne2]] -> 89916 | G52: 123902
B53: 2023-08-07 | C53: 159 | D53: =D52+Données[[#This Row],[KILOMÉTRAGE 1]] -> 103278 | E53: 2951 | F53: =F52+Données[[#This Row],[Colonne2]] -> 92867 | G53: 123902
B54: 2023-08-08 | C54: 291 | D54: =D53+Données[[#This Row],[KILOMÉTRAGE 1]] -> 103569 | E54: 109 | F54: =F53+Données[[#This Row],[Colonne2]] -> 92976 | G54: 123902
B55: 2023-08-09 | C55: 137 | D55: =D54+Données[[#This Row],[KILOMÉTRAGE 1]] -> 103706 | E55: 3484 | F55: =F54+Données[[#This Row],[Colonne2]] -> 96460 | G55: 123902
B56: 2023-08-10 | C56: 128 | D56: =D55+Données[[#This Row],[KILOMÉTRAGE 1]] -> 103834 | E56: 0 | F56: =F55+Données[[#This Row],[Colonne2]] -> 96460 | G56: 123902
B57: 2023-08-11 | C57: 113 | D57: =D56+Données[[#This Row],[KILOMÉTRAGE 1]] -> 103947 | E57: 3406 | F57: =F56+Données[[#This Row],[Colonne2]] -> 99866 | G57: 123902
B58: 2023-08-12 | C58: 0 | D58: =D57+Données[[#This Row],[KILOMÉTRAGE 1]] -> 103947 | E58: 0 | F58: =F57+Données[[#This Row],[Colonne2]] -> 99866 | G58: 123902
B59: 2023-08-13 | C59: 0 | D59: =D58+Données[[#This Row],[KILOMÉTRAGE 1]] -> 103947 | E59: 0 | F59: =F58+Données[[#This Row],[Colonne2]] -> 99866 | G59: 123902
B60: 2023-08-14 | C60: 0 | D60: =D59+Données[[#This Row],[KILOMÉTRAGE 1]] -> 103947 | E60: 0 | F60: =F59+Données[[#This Row],[Colonne2]] -> 99866 | G60: 123902
B61: 2023-08-15 | C61: 0 | D61: =D60+Données[[#This Row],[KILOMÉTRAGE 1]] -> 103947 | E61: 0 | F61: =F60+Données[[#This Row],[Colonne2]] -> 99866 | G61: 123902
B62: 2023-08-16 | C62: 257 | D62: =D61+Données[[#This Row],[KILOMÉTRAGE 1]] -> 104204 | E62: 0 | F62: =F61+Données[[#This Row],[Colonne2]] -> 99866 | G62: 123902
B63: 2023-08-17 | C63: 75 | D63: =D62+Données[[#This Row],[KILOMÉTRAGE 1]] -> 104279 | E63: 3388 | F63: =F62+Données[[#This Row],[Colonne2]] -> 103254 | G63: 123902
B64: 2023-08-18 | C64: 67 | D64: =D63+Données[[#This Row],[KILOMÉTRAGE 1]] -> 104346 | E64: 3589 | F64: =F63+Données[[#This Row],[Colonne2]] -> 106843 | G64: 123902
B65: 2023-08-19 | C65: 0 | D65: =D64+Données[[#This Row],[KILOMÉTRAGE 1]] -> 104346 | E65: 0 | F65: =F64+Données[[#This Row],[Colonne2]] -> 106843 | G65: 123902
B66: 2023-08-20 | C66: 0 | D66: =D65+Données[[#This Row],[KILOMÉTRAGE 1]] -> 104346 | E66: 0 | F66: =F65+Données[[#This Row],[Colonne2]] -> 106843 | G66: 123902
B67: 2023-08-21 | C67: 104 | D67: =D66+Données[[#This Row],[KILOMÉTRAGE 1]] -> 104450 | E67: 117 | F67: =F66+Données[[#This Row],[Colonne2]] -> 106960 | G67: 123902
B68: 2023-08-22 | C68: 157 | D68: =D67+Données[[#This Row],[KILOMÉTRAGE 1]] -> 104607 | E68: 164 | F68: =F67+Données[[#This Row],[Colonne2]] -> 107124 | G68: 123902
B69: 2023-08-23 | C69: 71 | D69: =D68+Données[[#This Row],[KILOMÉTRAGE 1]] -> 104678 | E69: 68 | F69: =F68+Données[[#This Row],[Colonne2]] -> 107192 | G69: 123902
B70: 2023-08-24 | C70: 56 | D70: =D69+Données[[#This Row],[KILOMÉTRAGE 1]] -> 104734 | E70: 59 | F70: =F69+Données[[#This Row],[Colonne2]] -> 107251 | G70: 123902
B71: 2023-08-25 | C71: 63 | D71: =D70+Données[[#This Row],[KILOMÉTRAGE 1]] -> 104797 | E71: 69 | F71: =F70+Données[[#This Row],[Colonne2]] -> 107320 | G71: 123902
B72: 2023-08-26 | C72: 0 | D72: =D71+Données[[#This Row],[KILOMÉTRAGE 1]] -> 104797 | E72: 0 | F72: =F71+Données[[#This Row],[Colonne2]] -> 107320 | G72: 123902
B73: 2023-08-27 | C73: 0 | D73: =D72+Données[[#This Row],[KILOMÉTRAGE 1]] -> 104797 | E73: 0 | F73: =F72+Données[[#This Row],[Colonne2]] -> 107320 | G73: 123902
B74: 2023-08-28 | C74: 105 | D74: =D73+Données[[#This Row],[KILOMÉTRAGE 1]] -> 104902 | E74: 122 | F74: =F73+Données[[#This Row],[Colonne2]] -> 107442 | G74: 123902
B75: 2023-08-29 | C75: 65 | D75: =D74+Données[[#This Row],[KILOMÉTRAGE 1]] -> 104967 | E75: 73 | F75: =F74+Données[[#This Row],[Colonne2]] -> 107515 | G75: 123902
B76: 2023-08-30 | C76: 38 | D76: =D75+Données[[#This Row],[KILOMÉTRAGE 1]] -> 105005 | E76: 51 | F76: =F75+Données[[#This Row],[Colonne2]] -> 107566 | G76: 123902
B77: 2023-08-31 | C77: 65 | D77: =D76+Données[[#This Row],[KILOMÉTRAGE 1]] -> 105070 | E77: 67 | F77: =F76+Données[[#This Row],[Colonne2]] -> 107633 | G77: 123902
B78: 2023-09-01 | C78: 83 | D78: =D77+Données[[#This Row],[KILOMÉTRAGE 1]] -> 105153 | E78: 11 | F78: =F77+Données[[#This Row],[Colonne2]] -> 107644 | G78: 123902
B79: 2023-09-02 | C79: 0 | D79: =D78+Données[[#This Row],[KILOMÉTRAGE 1]] -> 105153 | E79: 0 | F79: =F78+Données[[#This Row],[Colonne2]] -> 107644 | G79: 123902
B80: 2023-09-03 | C80: 0 | D80: =D79+Données[[#This Row],[KILOMÉTRAGE 1]] -> 105153 | E80: 0 | F80: =F79+Données[[#This Row],[Colonne2]] -> 107644 | G80: 123902
B81: 2023-09-04 | C81: 65 | D81: =D80+Données[[#This Row],[KILOMÉTRAGE 1]] -> 105218 | E81: 27 | F81: =F80+Données[[#This Row],[Colonne2]] -> 107671 | G81: 123902
B82: 2023-09-05 | C82: 154 | D82: =D81+Données[[#This Row],[KILOMÉTRAGE 1]] -> 105372 | E82: 298 | F82: =F81+Données[[#This Row],[Colonne2]] -> 107969 | G82: 123902
B83: 2023-09-06 | C83: 0 | D83: =D82+Données[[#This Row],[KILOMÉTRAGE 1]] -> 105372 | E83: 13 | F83: =F82+Données[[#This Row],[Colonne2]] -> 107982 | G83: 123902
B84: 2023-09-07 | C84: 61 | D84: =D83+Données[[#This Row],[KILOMÉTRAGE 1]] -> 105433 | E84: 73 | F84: =F83+Données[[#This Row],[Colonne2]] -> 108055 | G84: 123902
B85: 2023-09-08 | C85: 76 | D85: =D84+Données[[#This Row],[KILOMÉTRAGE 1]] -> 105509 | E85: 0 | F85: =F84+Données[[#This Row],[Colonne2]] -> 108055 | G85: 123902
B86: 2023-09-09 | C86: 0 | D86: =D85+Données[[#This Row],[KILOMÉTRAGE 1]] -> 105509 | E86: 0 | F86: =F85+Données[[#This Row],[Colonne2]] -> 108055 | G86: 123902
B87: 2023-09-10 | C87: 0 | D87: =D86+Données[[#This Row],[KILOMÉTRAGE 1]] -> 105509 | E87: 0 | F87: =F86+Données[[#This Row],[Colonne2]] -> 108055 | G87: 123902
B88: 2023-09-11 | C88: 114 | D88: =D87+Données[[#This Row],[KILOMÉTRAGE 1]] -> 105623 | E88: 0 | F88: =F87+Données[[#This Row],[Colonne2]] -> 108055 | G88: 123902
B89: 2023-09-12 | C89: 56 | D89: =D88+Données[[#This Row],[KILOMÉTRAGE 1]] -> 105679 | E89: 1 | F89: =F88+Données[[#This Row],[Colonne2]] -> 108056 | G89: 123902
B90: 2023-09-13 | C90: 42 | D90: =D89+Données[[#This Row],[KILOMÉTRAGE 1]] -> 105721 | E90: 317 | F90: =F89+Données[[#This Row],[Colonne2]] -> 108373 | G90: 123902
B91: 2023-09-14 | C91: 52 | D91: =D90+Données[[#This Row],[KILOMÉTRAGE 1]] -> 105773 | E91: 0 | F91: =F90+Données[[#This Row],[Colonne2]] -> 108373 | G91: 123902
B92: 2023-09-15 | C92: 66 | D92: =D91+Données[[#This Row],[KILOMÉTRAGE 1]] -> 105839 | E92: 139 | F92: =F91+Données[[#This Row],[Colonne2]] -> 108512 | G92: 123902
B93: 2023-09-16 | C93: 0 | D93: =D92+Données[[#This Row],[KILOMÉTRAGE 1]] -> 105839 | E93: 0 | F93: =F92+Données[[#This Row],[Colonne2]] -> 108512 | G93: 123902
B94: 2023-09-17 | C94: 0 | D94: =D93+Données[[#This Row],[KILOMÉTRAGE 1]] -> 105839 | E94: 0 | F94: =F93+Données[[#This Row],[Colonne2]] -> 108512 | G94: 123902
B95: 2023-09-18 | C95: 40 | D95: =D94+Données[[#This Row],[KILOMÉTRAGE 1]] -> 105879 | E95: 0 | F95: =F94+Données[[#This Row],[Colonne2]] -> 108512 | G95: 123902
B96: 2023-09-19 | C96: 125 | D96: =D95+Données[[#This Row],[KILOMÉTRAGE 1]] -> 106004 | E96: 9 | F96: =F95+Données[[#This Row],[Colonne2]] -> 108521 | G96: 123902
B97: 2023-09-20 | C97: 0 | D97: =D96+Données[[#This Row],[KILOMÉTRAGE 1]] -> 106004 | E97: 6 | F97: =F96+Données[[#This Row],[Colonne2]] -> 108527 | G97: 123902
B98: 2023-09-21 | C98: 87 | D98: =D97+Données[[#This Row],[KILOMÉTRAGE 1]] -> 106091 | E98: 1 | F98: =F97+Données[[#This Row],[Colonne2]] -> 108528 | G98: 123902
B99: 2023-09-22 | C99: 60 | D99: =D98+Données[[#This Row],[KILOMÉTRAGE 1]] -> 106151 | E99: 3 | F99: =F98+Données[[#This Row],[Colonne2]] -> 108531 | G99: 123902
B100: 2023-09-23 | C100: 0 | D100: =D99+Données[[#This Row],[KILOMÉTRAGE 1]] -> 106151 | E100: 0 | F100: =F99+Données[[#This Row],[Colonne2]] -> 108531 | G100: 123902
B101: 2023-09-24 | C101: 0 | D101: =D100+Données[[#This Row],[KILOMÉTRAGE 1]] -> 106151 | E101: 0 | F101: =F100+Données[[#This Row],[Colonne2]] -> 108531 | G101: 123902
B102: 2023-09-25 | C102: 91 | D102: =D101+Données[[#This Row],[KILOMÉTRAGE 1]] -> 106242 | E102: 0 | F102: =F101+Données[[#This Row],[Colonne2]] -> 108531 | G102: 123902
B103: 2023-09-26 | C103: 35 | D103: =D102+Données[[#This Row],[KILOMÉTRAGE 1]] -> 106277 | E103: 2 | F103: =F102+Données[[#This Row],[Colonne2]] -> 108533 | G103: 123902
B104: 2023-09-27 | C104: 42 | D104: =D103+Données[[#This Row],[KILOMÉTRAGE 1]] -> 106319 | E104: 0 | F104: =F103+Données[[#This Row],[Colonne2]] -> 108533 | G104: 123902
B105: 2023-09-28 | C105: 42 | D105: =D104+Données[[#This Row],[KILOMÉTRAGE 1]] -> 106361 | E105: 0 | F105: =F104+Données[[#This Row],[Colonne2]] -> 108533 | G105: 123902
B106: 2023-09-29 | C106: 48 | D106: =D105+Données[[#This Row],[KILOMÉTRAGE 1]] -> 106409 | E106: 4 | F106: =F105+Données[[#This Row],[Colonne2]] -> 108537 | G106: 123902
B107: 2023-09-30 | C107: 0 | D107: =D106+Données[[#This Row],[KILOMÉTRAGE 1]] -> 106409 | E107: 0 | F107: =F106+Données[[#This Row],[Colonne2]] -> 108537 | G107: 123902
B108: 2023-10-01 | C108: 0 | D108: =SUM(RIGHT(Données[[#This Row],[KILOMÉTRAGE 1]])) -> 0 | E108: 0 | F108: 0 | G108: 66693
B109: 2023-10-02 | C109: 46 | D109: =D108+Données[[#This Row],[KILOMÉTRAGE 1]] -> 46 | E109: 0 | F109: =F108+Données[[#This Row],[Colonne2]] -> 0 | G109: 66693
B110: 2023-10-03 | C110: 0 | D110: =D109+Données[[#This Row],[KILOMÉTRAGE 1]] -> 46 | E110: 0 | F110: =F109+Données[[#This Row],[Colonne2]] -> 0 | G110: 66693
B111: 2023-10-04 | C111: 109 | D111: =D110+Données[[#This Row],[KILOMÉTRAGE 1]] -> 155 | E111: 0 | F111: =F110+Données[[#This Row],[Colonne2]] -> 0 | G111: 66693
B112: 2023-10-05 | C112: 33 | D112: =D111+Données[[#This Row],[KILOMÉTRAGE 1]] -> 188 | E112: 1 | F112: =F111+Données[[#This Row],[Colonne2]] -> 1 | G112: 66693
B113: 2023-10-06 | C113: 50 | D113: =D112+Données[[#This Row],[KILOMÉTRAGE 1]] -> 238 | E113: 592 | F113: =F112+Données[[#This Row],[Colonne2]] -> 593 | G113: 66693
B114: 2023-10-07 | C114: 0 | D114: =D113+Données[[#This Row],[KILOMÉTRAGE 1]] -> 238 | E114: 0 | F114: =F113+Données[[#This Row],[Colonne2]] -> 593 | G114: 66693
B115: 2023-10-08 | C115: 0 | D115: =D114+Données[[#This Row],[KILOMÉTRAGE 1]] -> 238 | E115: 0 | F115: =F114+Données[[#This Row],[Colonne2]] -> 593 | G115: 66693
B116: 2023-10-09 | C116: 82 | D116: =D115+Données[[#This Row],[KILOMÉTRAGE 1]] -> 320 | E116: 0 | F116: =F115+Données[[#This Row],[Colonne2]] -> 593 | G116: 66693
B117: 2023-10-10 | C117: 28 | D117: =D116+Données[[#This Row],[KILOMÉTRAGE 1]] -> 348 | E117: 0 | F117: =F116+Données[[#This Row],[Colonne2]] -> 593 | G117: 66693
B118: 2023-10-11 | C118: 21 | D118: =D117+Données[[#This Row],[KILOMÉTRAGE 1]] -> 369 | E118: 0 | F118: =F117+Données[[#This Row],[Colonne2]] -> 593 | G118: 66693
B119: 2023-10-12 | C119: 20 | D119: =D118+Données[[#This Row],[KILOMÉTRAGE 1]] -> 389 | E119: 0 | F119: =F118+Données[[#This Row],[Colonne2]] -> 593 | G119: 66693
B120: 2023-10-13 | C120: 38 | D120: =D119+Données[[#This Row],[KILOMÉTRAGE 1]] -> 427 | E120: 0 | F120: =F119+Données[[#This Row],[Colonne2]] -> 593 | G120: 66693
B121: 2023-10-14 | C121: 0 | D121: =D120+Données[[#This Row],[KILOMÉTRAGE 1]] -> 427 | E121: 0 | F121: =F120+Données[[#This Row],[Colonne2]] -> 593 | G121: 66693
B122: 2023-10-15 | C122: 0 | D122: =D121+Données[[#This Row],[KILOMÉTRAGE 1]] -> 427 | E122: 0 | F122: =F121+Données[[#This Row],[Colonne2]] -> 593 | G122: 66693
B123: 2023-10-16 | C123: 27 | D123: =D122+Données[[#This Row],[KILOMÉTRAGE 1]] -> 454 | E123: 0 | F123: =F122+Données[[#This Row],[Colonne2]] -> 593 | G123: 66693
B124: 2023-10-17 | C124: 45 | D124: =D123+Données[[#This Row],[KILOMÉTRAGE 1]] -> 499 | E124: 0 | F124: =F123+Données[[#This Row],[Colonne2]] -> 593 | G124: 66693
B125: 2023-10-18 | C125: 20 | D125: =D124+Données[[#This Row],[KILOMÉTRAGE 1]] -> 519 | E125: 0 | F125: =F124+Données[[#This Row],[Colonne2]] -> 593 | G125: 66693
B126: 2023-10-19 | C126: 14 | D126: =D125+Données[[#This Row],[KILOMÉTRAGE 1]] -> 533 | E126: 0 | F126: =F125+Données[[#This Row],[Colonne2]] -> 593 | G126: 66693
B127: 2023-10-20 | C127: 27 | D127: =D126+Données[[#This Row],[KILOMÉTRAGE 1]] -> 560 | E127: 0 | F127: =F126+Données[[#This Row],[Colonne2]] -> 593 | G127: 66693
B128: 2023-10-21 | C128: 0 | D128: =D127+Données[[#This Row],[KILOMÉTRAGE 1]] -> 560 | E128: 0 | F128: =F127+Données[[#This Row],[Colonne2]] -> 593 | G128: 66693
B129: 2023-10-22 | C129: 0 | D129: =D128+Données[[#This Row],[KILOMÉTRAGE 1]] -> 560 | E129: 0 | F129: =F128+Données[[#This Row],[Colonne2]] -> 593 | G129: 66693
B130: 2023-10-23 | C130: 59 | D130: =D129+Données[[#This Row],[KILOMÉTRAGE 1]] -> 619 | E130: 0 | F130: =F129+Données[[#This Row],[Colonne2]] -> 593 | G130: 66693
B131: 2023-10-24 | C131: 1336 | D131: =D130+Données[[#This Row],[KILOMÉTRAGE 1]] -> 1955 | E131: 0 | F131: =F130+Données[[#This Row],[Colonne2]] -> 593 | G131: 66693
B132: 2023-10-25 | C132: 1272 | D132: =D131+Données[[#This Row],[KILOMÉTRAGE 1]] -> 3227 | E132: 0 | F132: =F131+Données[[#This Row],[Colonne2]] -> 593 | G132: 66693
B133: 2023-10-26 | C133: 1990 | D133: =D132+Données[[#This Row],[KILOMÉTRAGE 1]] -> 5217 | E133: 0 | F133: =F132+Données[[#This Row],[Colonne2]] -> 593 | G133: 66693
B134: 2023-10-27 | C134: 2226 | D134: =D133+Données[[#This Row],[KILOMÉTRAGE 1]] -> 7443 | E134: 0 | F134: =F133+Données[[#This Row],[Colonne2]] -> 593 | G134: 66693
B135: 2023-10-28 | C135: 0 | D135: =D134+Données[[#This Row],[KILOMÉTRAGE 1]] -> 7443 | E135: 0 | F135: =F134+Données[[#This Row],[Colonne2]] -> 593 | G135: 66693
B136: 2023-10-29 | C136: 0 | D136: =D135+Données[[#This Row],[KILOMÉTRAGE 1]] -> 7443 | E136: 0 | F136: =F135+Données[[#This Row],[Colonne2]] -> 593 | G136: 66693
B137: 2023-10-30 | C137: 1632 | D137: =D136+Données[[#This Row],[KILOMÉTRAGE 1]] -> 9075 | E137: 0 | F137: =F136+Données[[#This Row],[Colonne2]] -> 593 | G137: 66693
B138: 2023-10-31 | C138: 4811 | D138: =D137+Données[[#This Row],[KILOMÉTRAGE 1]] -> 13886 | E138: 0 | F138: =F137+Données[[#This Row],[Colonne2]] -> 593 | G138: 66693
B139: 2023-11-01 | C139: 0 | D139: =D138+Données[[#This Row],[KILOMÉTRAGE 1]] -> 13886 | E139: 0 | F139: =F138+Données[[#This Row],[Colonne2]] -> 593 | G139: 66693
B140: 2023-11-02 | C140: 2473 | D140: =D139+Données[[#This Row],[KILOMÉTRAGE 1]] -> 16359 | E140: 0 | F140: =F139+Données[[#This Row],[Colonne2]] -> 593 | G140: 66693
B141: 2023-11-03 | C141: 5 | D141: =D140+Données[[#This Row],[KILOMÉTRAGE 1]] -> 16364 | E141: 0 | F141: =F140+Données[[#This Row],[Colonne2]] -> 593 | G141: 66693
B142: 2023-11-04 | C142: 0 | D142: =D141+Données[[#This Row],[KILOMÉTRAGE 1]] -> 16364 | E142: 0 | F142: =F141+Données[[#This Row],[Colonne2]] -> 593 | G142: 66693
B143: 2023-11-05 | C143: 0 | D143: =D142+Données[[#This Row],[KILOMÉTRAGE 1]] -> 16364 | E143: 0 | F143: =F142+Données[[#This Row],[Colonne2]] -> 593 | G143: 66693
B144: 2023-11-06 | C144: 3560 | D144: =D143+Données[[#This Row],[KILOMÉTRAGE 1]] -> 19924 | E144: 0 | F144: =F143+Données[[#This Row],[Colonne2]] -> 593 | G144: 66693
B145: 2023-11-07 | C145: 8016 | D145: =D144+Données[[#This Row],[KILOMÉTRAGE 1]] -> 27940 | E145: 0 | F145: =F144+Données[[#This Row],[Colonne2]] -> 593 | G145: 66693
B146: 2023-11-08 | C146: 1908 | D146: =D145+Données[[#This Row],[KILOMÉTRAGE 1]] -> 29848 | E146: 0 | F146: =F145+Données[[#This Row],[Colonne2]] -> 593 | G146: 66693
B147: 2023-11-09 | C147: 1664 | D147: =D146+Données[[#This Row],[KILOMÉTRAGE 1]] -> 31512 | E147: 0 | F147: =F146+Données[[#This Row],[Colonne2]] -> 593 | G147: 66693
B148: 2023-11-10 | C148: 1698 | D148: =D147+Données[[#This Row],[KILOMÉTRAGE 1]] -> 33210 | E148: 0 | F148: =F147+Données[[#This Row],[Colonne2]] -> 593 | G148: 66693
B149: 2023-11-11 | C149: 0 | D149: =D148+Données[[#This Row],[KILOMÉTRAGE 1]] -> 33210 | E149: 0 | F149: =F148+Données[[#This Row],[Colonne2]] -> 593 | G149: 66693
B150: 2023-11-12 | C150: 0 | D150: =D149+Données[[#This Row],[KILOMÉTRAGE 1]] -> 33210 | E150: 0 | F150: =F149+Données[[#This Row],[Colonne2]] -> 593 | G150: 66693
B151: 2023-11-13 | C151: 1392 | D151: =D150+Données[[#This Row],[KILOMÉTRAGE 1]] -> 34602 | E151: 0 | F151: =F150+Données[[#This Row],[Colonne2]] -> 593 | G151: 66693
B152: 2023-11-14 | C152: 611 | D152: =D151+Données[[#This Row],[KILOMÉTRAGE 1]] -> 35213 | E152: 0 | F152: =F151+Données[[#This Row],[Colonne2]] -> 593 | G152: 66693
B153: 2023-11-15 | C153: 697 | D153: =D152+Données[[#This Row],[KILOMÉTRAGE 1]] -> 35910 | E153: 0 | F153: =F152+Données[[#This Row],[Colonne2]] -> 593 | G153: 66693
B154: 2023-11-16 | C154: 678 | D154: =D153+Données[[#This Row],[KILOMÉTRAGE 1]] -> 36588 | E154: 0 | F154: =F153+Données[[#This Row],[Colonne2]] -> 593 | G154: 66693
B155: 2023-11-17 | C155: 784 | D155: =D154+Données[[#This Row],[KILOMÉTRAGE 1]] -> 37372 | E155: 0 | F155: =F154+Données[[#This Row],[Colonne2]] -> 593 | G155: 66693
B156: 2023-11-18 | C156: 0 | D156: =D155+Données[[#This Row],[KILOMÉTRAGE 1]] -> 37372 | E156: 0 | F156: =F155+Données[[#This Row],[Colonne2]] -> 593 | G156: 66693
B157: 2023-11-19 | C157: 0 | D157: =D156+Données[[#This Row],[KILOMÉTRAGE 1]] -> 37372 | E157: 0 | F157: =F156+Données[[#This Row],[Colonne2]] -> 593 | G157: 66693
B158: 2023-11-20 | C158: 641 | D158: =D157+Données[[#This Row],[KILOMÉTRAGE 1]] -> 38013 | E158: 0 | F158: =F157+Données[[#This Row],[Colonne2]] -> 593 | G158: 66693
B159: 2023-11-21 | C159: 641 | D159: =D158+Données[[#This Row],[KILOMÉTRAGE 1]] -> 38654 | E159: 0 | F159: =F158+Données[[#This Row],[Colonne2]] -> 593 | G159: 66693
B160: 2023-11-22 | C160: 407 | D160: =D159+Données[[#This Row],[KILOMÉTRAGE 1]] -> 39061 | E160: 0 | F160: =F159+Données[[#This Row],[Colonne2]] -> 593 | G160: 66693
B161: 2023-11-23 | C161: 438 | D161: =D160+Données[[#This Row],[KILOMÉTRAGE 1]] -> 39499 | E161: 0 | F161: =F160+Données[[#This Row],[Colonne2]] -> 593 | G161: 66693
B162: 2023-11-24 | C162: 237 | D162: =D161+Données[[#This Row],[KILOMÉTRAGE 1]] -> 39736 | E162: 0 | F162: =F161+Données[[#This Row],[Colonne2]] -> 593 | G162: 66693
B163: 2023-11-25 | C163: 0 | D163: =D162+Données[[#This Row],[KILOMÉTRAGE 1]] -> 39736 | E163: 0 | F163: =F162+Données[[#This Row],[Colonne2]] -> 593 | G163: 66693
B164: 2023-11-26 | C164: 0 | D164: =D163+Données[[#This Row],[KILOMÉTRAGE 1]] -> 39736 | E164: 0 | F164: =F163+Données[[#This Row],[Colonne2]] -> 593 | G164: 66693
B165: 2023-11-27 | C165: 297 | D165: =D164+Données[[#This Row],[KILOMÉTRAGE 1]] -> 40033 | E165: 0 | F165: =F164+Données[[#This Row],[Colonne2]] -> 593 | G165: 66693
B166: 2023-11-28 | C166: 458 | D166: =D165+Données[[#This Row],[KILOMÉTRAGE 1]] -> 40491 | E166: 0 | F166: =F165+Données[[#This Row],[Colonne2]] -> 593 | G166: 66693
B167: 2023-11-29 | C167: 180 | D167: =D166+Données[[#This Row],[KILOMÉTRAGE 1]] -> 40671 | E167: 0 | F167: =F166+Données[[#This Row],[Colonne2]] -> 593 | G167: 66693
B168: 2023-11-30 | C168: 161 | D168: =D167+Données[[#This Row],[KILOMÉTRAGE 1]] -> 40832 | E168: 0 | F168: =F167+Données[[#This Row],[Colonne2]] -> 593 | G168: 66693
B169: 2023-12-01 | C169: 21 | D169: =D168+Données[[#This Row],[KILOMÉTRAGE 1]] -> 40853 | E169: 0 | F169: =F168+Données[[#This Row],[Colonne2]] -> 593 | G169: 66693
B170: 2023-12-02 | C170: 0 | D170: =D169+Données[[#This Row],[KILOMÉTRAGE 1]] -> 40853 | E170: 0 | F170: =F169+Données[[#This Row],[Colonne2]] -> 593 | G170: 66693
B171: 2023-12-03 | C171: 0 | D171: =D170+Données[[#This Row],[KILOMÉTRAGE 1]] -> 40853 | E171: 0 | F171: =F170+Données[[#This Row],[Colonne2]] -> 593 | G171: 66693
B172: 2023-12-04 | C172: 485 | D172: =D171+Données[[#This Row],[KILOMÉTRAGE 1]] -> 41338 | E172: 0 | F172: =F171+Données[[#This Row],[Colonne2]] -> 593 | G172: 66693
B173: 2023-12-05 | C173: 114 | D173: =D172+Données[[#This Row],[KILOMÉTRAGE 1]] -> 41452 | E173: 0 | F173: =F172+Données[[#This Row],[Colonne2]] -> 593 | G173: 66693
B174: 2023-12-06 | C174: 130 | D174: =D173+Données[[#This Row],[KILOMÉTRAGE 1]] -> 41582 | E174: 0 | F174: =F173+Données[[#This Row],[Colonne2]] -> 593 | G174: 66693
B175: 2023-12-07 | C175: 103 | D175: =D174+Données[[#This Row],[KILOMÉTRAGE 1]] -> 41685 | E175: 0 | F175: =F174+Données[[#This Row],[Colonne2]] -> 593 | G175: 66693
B176: 2023-12-08 | C176: 150 | D176: =D175+Données[[#This Row],[KILOMÉTRAGE 1]] -> 41835 | E176: 0 | F176: =F175+Données[[#This Row],[Colonne2]] -> 593 | G176: 66693
B177: 2023-12-09 | C177: 0 | D177: =D176+Données[[#This Row],[KILOMÉTRAGE 1]] -> 41835 | E177: 0 | F177: =F176+Données[[#This Row],[Colonne2]] -> 593 | G177: 66693
B178: 2023-12-10 | C178: 0 | D178: =D177+Données[[#This Row],[KILOMÉTRAGE 1]] -> 41835 | E178: 0 | F178: =F177+Données[[#This Row],[Colonne2]] -> 593 | G178: 66693
B179: 2023-12-11 | C179: 121 | D179: =D178+Données[[#This Row],[KILOMÉTRAGE 1]] -> 41956 | E179: 0 | F179: =F178+Données[[#This Row],[Colonne2]] -> 593 | G179: 66693
B180: 2023-12-12 | C180: 173 | D180: =D179+Données[[#This Row],[KILOMÉTRAGE 1]] -> 42129 | E180: 0 | F180: =F179+Données[[#This Row],[Colonne2]] -> 593 | G180: 66693
B181: 2023-12-13 | C181: 94 | D181: =D180+Données[[#This Row],[KILOMÉTRAGE 1]] -> 42223 | E181: 0 | F181: =F180+Données[[#This Row],[Colonne2]] -> 593 | G181: 66693
B182: 2023-12-14 | C182: 101 | D182: =D181+Données[[#This Row],[KILOMÉTRAGE 1]] -> 42324 | E182: 0 | F182: =F181+Données[[#This Row],[Colonne2]] -> 593 | G182: 66693
B183: 2023-12-15 | C183: 94 | D183: =D182+Données[[#This Row],[KILOMÉTRAGE 1]] -> 42418 | E183: 0 | F183: =F182+Données[[#This Row],[Colonne2]] -> 593 | G183: 66693
B184: 2023-12-16 | C184: 0 | D184: =D183+Données[[#This Row],[KILOMÉTRAGE 1]] -> 42418 | E184: 0 | F184: =F183+Données[[#This Row],[Colonne2]] -> 593 | G184: 66693
B185: 2023-12-17 | C185: 0 | D185: =D184+Données[[#This Row],[KILOMÉTRAGE 1]] -> 42418 | E185: 0 | F185: =F184+Données[[#This Row],[Colonne2]] -> 593 | G185: 66693
B186: 2023-12-18 | C186: 215 | D186: =D185+Données[[#This Row],[KILOMÉTRAGE 1]] -> 42633 | E186: 1 | F186: =F185+Données[[#This Row],[Colonne2]] -> 594 | G186: 66693
B187: 2023-12-19 | C187: 68 | D187: =D186+Données[[#This Row],[KILOMÉTRAGE 1]] -> 42701 | E187: 0 | F187: =F186+Données[[#This Row],[Colonne2]] -> 594 | G187: 66693
B188: 2023-12-20 | C188: 98 | D188: =D187+Données[[#This Row],[KILOMÉTRAGE 1]] -> 42799 | E188: 2057 | F188: =F187+Données[[#This Row],[Colonne2]] -> 2651 | G188: 66693
B189: 2023-12-21 | C189: 60 | D189: =D188+Données[[#This Row],[KILOMÉTRAGE 1]] -> 42859 | E189: 1782 | F189: =F188+Données[[#This Row],[Colonne2]] -> 4433 | G189: 66693
B190: 2023-12-22 | C190: 87 | D190: =D189+Données[[#This Row],[KILOMÉTRAGE 1]] -> 42946 | E190: 1 | F190: =F189+Données[[#This Row],[Colonne2]] -> 4434 | G190: 66693
B191: 2023-12-23 | C191: 0 | D191: =D190+Données[[#This Row],[KILOMÉTRAGE 1]] -> 42946 | E191: 0 | F191: =F190+Données[[#This Row],[Colonne2]] -> 4434 | G191: 66693
B192: 2023-12-24 | C192: 0 | D192: =D191+Données[[#This Row],[KILOMÉTRAGE 1]] -> 42946 | E192: 0 | F192: =F191+Données[[#This Row],[Colonne2]] -> 4434 | G192: 66693
B193: 2023-12-25 | C193: 0 | D193: =D192+Données[[#This Row],[KILOMÉTRAGE 1]] -> 42946 | E193: 0 | F193: =F192+Données[[#This Row],[Colonne2]] -> 4434 | G193: 66693
B194: 2023-12-26 | C194: 0 | D194: =D193+Données[[#This Row],[KILOMÉTRAGE 1]] -> 42946 | E194: 0 | F194: =F193+Données[[#This Row],[Colonne2]] -> 4434 | G194: 66693
B195: 2023-12-27 | C195: 213 | D195: =D194+Données[[#This Row],[KILOMÉTRAGE 1]] -> 43159 | E195: 5 | F195: =F194+Données[[#This Row],[Colonne2]] -> 4439 | G195: 66693
B196: 2023-12-28 | C196: 0 | D196: =D195+Données[[#This Row],[KILOMÉTRAGE 1]] -> 43159 | E196: 0 | F196: =F195+Données[[#This Row],[Colonne2]] -> 4439 | G196: 66693
B197: 2023-12-29 | C197: 136 | D197: =D196+Données[[#This Row],[KILOMÉTRAGE 1]] -> 43295 | E197: 1 | F197: =F196+Données[[#This Row],[Colonne2]] -> 4440 | G197: 66693
B198: 2023-12-30 | C198: 0 | D198: =D197+Données[[#This Row],[KILOMÉTRAGE 1]] -> 43295 | E198: 0 | F198: =F197+Données[[#This Row],[Colonne2]] -> 4440 | G198: 66693
B199: 2023-12-31 | C199: 0 | D199: =D198+Données[[#This Row],[KILOMÉTRAGE 1]] -> 43295 | E199: 0 | F199: =F198+Données[[#This Row],[Colonne2]] -> 4440 | G199: 66693
B200: 2024-01-01 | C200: 0 | D200: =D199+Données[[#This Row],[KILOMÉTRAGE 1]] -> 43295 | E200: 0 | F200: =F199+Données[[#This Row],[Colonne2]] -> 4440 | G200: 66693
B201: 2024-01-02 | C201: =[1]JANVIER!$F$4 -> 97 | D201: =D200+Données[[#This Row],[KILOMÉTRAGE 1]] -> 43392 | E201: 0 | F201: =F200+Données[[#This Row],[Colonne2]] -> 4440 | G201: 66693
B202: 2024-01-03 | C202: =[1]JANVIER!$F$5 -> 0 | D202: =D201+Données[[#This Row],[KILOMÉTRAGE 1]] -> 43392 | E202: 667 | F202: =F201+Données[[#This Row],[Colonne2]] -> 5107 | G202: 66693
... 271 more rows

Sheet 2024
C1: Certificats 2024
I4: ID | J4: PÉRIODE DÉBUT | K4: PÉRIODE FIN | L4: Certificats envoyé | M4: certifcats Reçus | N4: % reçu | O4: certifcats scannés | P4: % Scanné
B5: Date | C5: CHIFFRE jour | D5: TOTAL | E5: certifcats scannés | F5: Total | I5: 1 | J5: 2024-10-01 | L5: 7883 | M5: =SUM(C7:C107) -> 0 | N5: =M5/L5 -> 0 | O5: =SUM(E7:E107) -> 0 | P5: =O5/L5 -> 0 | R5: MOIS | S5: Certificats Reçu | T5: Certificats Scanné
B6: DATE | C6: KILOMÉTRAGE 1 | D6: KILOMÈTRES | E6: Colonne2 | F6: Colonne4 | G6: Colonne5 | R6: 2023-06-01
B7: 2024-10-01 | G7: 7883 | R7: 2024-10-01 | S7: =D15 -> 0 | T7: =SUM(E7:E15) -> 0
B8: 2024-10-02 | D8: =D7+Données4[[#This Row],[KILOMÉTRAGE 1]] -> 0 | F8: =F7+Données4[[#This Row],[Colonne2]] -> 0 | G8: 7883 | R8: 2024-11-01 | S8: =SUM(C16:C46) -> 0 | T8: =SUM(E16:E46) -> 0
B9: 2024-10-03 | D9: =D8+Données4[[#This Row],[KILOMÉTRAGE 1]] -> 0 | F9: =F8+Données4[[#This Row],[Colonne2]] -> 0 | G9: 7883 | R9: 2024-12-01 | S9: =SUM(C47:C77) -> 0 | T9: =SUM(E47:E77) -> 0
B10: 2024-10-04 | D10: =D9+Données4[[#This Row],[KILOMÉTRAGE 1]] -> 0 | F10: =F9+Données4[[#This Row],[Colonne2]] -> 0 | G10: 7883 | R10: 2025-01-01 | S10: =SUM(C78:C107) -> 0 | T10: =SUM(E78:E107) -> 0
B11: 2024-10-05 | D11: =D10+Données4[[#This Row],[KILOMÉTRAGE 1]] -> 0 | F11: =F10+Données4[[#This Row],[Colonne2]] -> 0 | G11: 7883 | R11: 2025-02-01 | S11: =SUM(C108:C138) -> 0 | T11: =SUM(E108:E138) -> 0
B12: 2024-10-06 | D12: =D11+Données4[[#This Row],[KILOMÉTRAGE 1]] -> 0 | F12: =F11+Données4[[#This Row],[Colonne2]] -> 0 | G12: 7883 | R12: 2025-03-01 | S12: =SUM(C139:C168) -> 0 | T12: =SUM(E139:E168) -> 0
B13: 2024-10-07 | D13: =D12+Données4[[#This Row],[KILOMÉTRAGE 1]] -> 0 | F13: =F12+Données4[[#This Row],[Colonne2]] -> 0 | G13: 7883
B14: 2024-10-08 | D14: =D13+Données4[[#This Row],[KILOMÉTRAGE 1]] -> 0 | F14: =F13+Données4[[#This Row],[Colonne2]] -> 0 | G14: 7883
B15: 2024-10-09 | D15: =D14+Données4[[#This Row],[KILOMÉTRAGE 1]] -> 0 | F15: =F14+Données4[[#This Row],[Colonne2]] -> 0 | G15: 7883
B16: 2024-10-10 | D16: =D15+Données4[[#This Row],[KILOMÉTRAGE 1]] -> 0 | F16: =F15+Données4[[#This Row],[Colonne2]] -> 0 | G16: 7883
B17: 2024-10-11 | D17: =D16+Données4[[#This Row],[KILOMÉTRAGE 1]] -> 0 | F17: =F16+Données4[[#This Row],[Colonne2]] -> 0 | G17: 7883
B18: 2024-10-12 | D18: =D17+Données4[[#This Row],[KILOMÉTRAGE 1]] -> 0 | F18: =F17+Données4[[#This Row],[Colonne2]] -> 0 | G18: 7883
B19: 2024-10-13 | D19: =D18+Données4[[#This Row],[KILOMÉTRAGE 1]] -> 0 | F19: =F18+Données4[[#This Row],[Colonne2]] -> 0 | G19: 7883
B20: 2024-10-14 | D20: =D19+Données4[[#This Row],[KILOMÉTRAGE 1]] -> 0 | F20: =F19+Données4[[#This Row],[Colonne2]] -> 0 | G20: 7883
B21: 2024-10-15 | D21: =D20+Données4[[#This Row],[KILOMÉTRAGE 1]] -> 0 | F21: =F20+Données4[[#This Row],[Colonne2]] -> 0 | G21: 7883
B22: 2024-10-16 | D22: =D21+Données4[[#This Row],[KILOMÉTRAGE 1]] -> 0 | F22: =F21+Données4[[#This Row],[Colonne2]] -> 0 | G22: 7883
B23: 2024-10-17 | D23: =D22+Données4[[#This Row],[KILOMÉTRAGE 1]] -> 0 | F23: =F22+Données4[[#This Row],[Colonne2]] -> 0 | G23: 7883
B24: 2024-10-18 | D24: =D23+Données4[[#This Row],[KILOMÉTRAGE 1]] -> 0 | F24: =F23+Données4[[#This Row],[Colonne2]] -> 0 | G24: 7883
B25: 2024-10-19 | D25: =D24+Données4[[#This Row],[KILOMÉTRAGE 1]] -> 0 | F25: =F24+Données4[[#This Row],[Colonne2]] -> 0 | G25: 7883
B26: 2024-10-20 | D26: =D25+Données4[[#This Row],[KILOMÉTRAGE 1]] -> 0 | F26: =F25+Données4[[#This Row],[Colonne2]] -> 0 | G26: 7883
B27: 2024-10-21 | D27: =D26+Données4[[#This Row],[KILOMÉTRAGE 1]] -> 0 | F27: =F26+Données4[[#This Row],[Colonne2]] -> 0 | G27: 7883
B28: 2024-10-22 | D28: =D27+Données4[[#This Row],[KILOMÉTRAGE 1]] -> 0 | F28: =F27+Données4[[#This Row],[Colonne2]] -> 0 | G28: 7883
B29: 2024-10-23 | D29: =D28+Données4[[#This Row],[KILOMÉTRAGE 1]] -> 0 | F29: =F28+Données4[[#This Row],[Colonne2]] -> 0 | G29: 7883
B30: 2024-10-24 | D30: =D29+Données4[[#This Row],[KILOMÉTRAGE 1]] -> 0 | F30: =F29+Données4[[#This Row],[Colonne2]] -> 0 | G30: 7883
B31: 2024-10-25 | D31: =D30+Données4[[#This Row],[KILOMÉTRAGE 1]] -> 0 | F31: =F30+Données4[[#This Row],[Colonne2]] -> 0 | G31: 7883
B32: 2024-10-26 | D32: =D31+Données4[[#This Row],[KILOMÉTRAGE 1]] -> 0 | F32: =F31+Données4[[#This Row],[Colonne2]] -> 0 | G32: 7883
B33: 2024-10-27 | D33: =D32+Données4[[#This Row],[KILOMÉTRAGE 1]] -> 0 | F33: =F32+Données4[[#This Row],[Colonne2]] -> 0 | G33: 7883
B34: 2024-10-28 | D34: =D33+Données4[[#This Row],[KILOMÉTRAGE 1]] -> 0 | F34: =F33+Données4[[#This Row],[Colonne2]] -> 0 | G34: 7883
B35: 2024-10-29 | D35: =D34+Données4[[#This Row],[KILOMÉTRAGE 1]] -> 0 | F35: =F34+Données4[[#This Row],[Colonne2]] -> 0 | G35: 7883
B36: 2024-10-30 | D36: =D35+Données4[[#This Row],[KILOMÉTRAGE 1]] -> 0 | F36: =F35+Données4[[#This Row],[Colonne2]] -> 0 | G36: 7883
B37: 2024-10-31 | D37: =D36+Données4[[#This Row],[KILOMÉTRAGE 1]] -> 0 | F37: =F36+Données4[[#This Row],[Colonne2]] -> 0 | G37: 7883
B38: 2024-11-01 | D38: =D37+Données4[[#This Row],[KILOMÉTRAGE 1]] -> 0 | F38: =F37+Données4[[#This Row],[Colonne2]] -> 0 | G38: 7883
B39: 2024-11-02 | D39: =D38+Données4[[#This Row],[KILOMÉTRAGE 1]] -> 0 | F39: =F38+Données4[[#This Row],[Colonne2]] -> 0 | G39: 7883
B40: 2024-11-03 | D40: =D39+Données4[[#This Row],[KILOMÉTRAGE 1]] -> 0 | F40: =F39+Données4[[#This Row],[Colonne2]] -> 0 | G40: 7883
B41: 2024-11-04 | D41: =D40+Données4[[#This Row],[KILOMÉTRAGE 1]] -> 0 | F41: =F40+Données4[[#This Row],[Colonne2]] -> 0 | G41: 7883
B42: 2024-11-05 | D42: =D41+Données4[[#This Row],[KILOMÉTRAGE 1]] -> 0 | F42: =F41+Données4[[#This Row],[Colonne2]] -> 0 | G42: 7883
B43: 2024-11-06 | D43: =D42+Données4[[#This Row],[KILOMÉTRAGE 1]] -> 0 | F43: =F42+Données4[[#This Row],[Colonne2]] -> 0 | G43: 7883
B44: 2024-11-07 | D44: =D43+Données4[[#This Row],[KILOMÉTRAGE 1]] -> 0 | F44: =F43+Données4[[#This Row],[Colonne2]] -> 0 | G44: 7883
B45: 2024-11-08 | D45: =D44+Données4[[#This Row],[KILOMÉTRAGE 1]] -> 0 | F45: =F44+Données4[[#This Row],[Colonne2]] -> 0 | G45: 7883
B46: 2024-11-09 | D46: =D45+Données4[[#This Row],[KILOMÉTRAGE 1]] -> 0 | F46: =F45+Données4[[#This Row],[Colonne2]] -> 0 | G46: 7883
B47: 2024-11-10 | D47: =D46+Données4[[#This Row],[KILOMÉTRAGE 1]] -> 0 | F47: =F46+Données4[[#This Row],[Colonne2]] -> 0 | G47: 7883
B48: 2024-11-11 | D48: =D47+Données4[[#This Row],[KILOMÉTRAGE 1]] -> 0 | F48: =F47+Données4[[#This Row],[Colonne2]] -> 0 | G48: 7883
B49: 2024-11-12 | D49: =D48+Données4[[#This Row],[KILOMÉTRAGE 1]] -> 0 | F49: =F48+Données4[[#This Row],[Colonne2]] -> 0 | G49: 7883
B50: 2024-11-13 | D50: =D49+Données4[[#This Row],[KILOMÉTRAGE 1]] -> 0 | F50: =F49+Données4[[#This Row],[Colonne2]] -> 0 | G50: 7883
B51: 2024-11-14 | D51: =D50+Données4[[#This Row],[KILOMÉTRAGE 1]] -> 0 | F51: =F50+Données4[[#This Row],[Colonne2]] -> 0 | G51: 7883
B52: 2024-11-15 | D52: =D51+Données4[[#This Row],[KILOMÉTRAGE 1]] -> 0 | F52: =F51+Données4[[#This Row],[Colonne2]] -> 0 | G52: 7883
B53: 2024-11-16 | D53: =D52+Données4[[#This Row],[KILOMÉTRAGE 1]] -> 0 | F53: =F52+Données4[[#This Row],[Colonne2]] -> 0 | G53: 7883
B54: 2024-11-17 | D54: =D53+Données4[[#This Row],[KILOMÉTRAGE 1]] -> 0 | F54: =F53+Données4[[#This Row],[Colonne2]] -> 0 | G54: 7883
B55: 2024-11-18 | D55: =D54+Données4[[#This Row],[KILOMÉTRAGE 1]] -> 0 | F55: =F54+Données4[[#This Row],[Colonne2]] -> 0 | G55: 7883
B56: 2024-11-19 | D56: =D55+Données4[[#This Row],[KILOMÉTRAGE 1]] -> 0 | F56: =F55+Données4[[#This Row],[Colonne2]] -> 0 | G56: 7883
B57: 2024-11-20 | D57: =D56+Données4[[#This Row],[KILOMÉTRAGE 1]] -> 0 | F57: =F56+Données4[[#This Row],[Colonne2]] -> 0 | G57: 7883
B58: 2024-11-21 | D58: =D57+Données4[[#This Row],[KILOMÉTRAGE 1]] -> 0 | F58: =F57+Données4[[#This Row],[Colonne2]] -> 0 | G58: 7883
B59: 2024-11-22 | D59: =D58+Données4[[#This Row],[KILOMÉTRAGE 1]] -> 0 | F59: =F58+Données4[[#This Row],[Colonne2]] -> 0 | G59: 7883
B60: 2024-11-23 | D60: =D59+Données4[[#This Row],[KILOMÉTRAGE 1]] -> 0 | F60: =F59+Données4[[#This Row],[Colonne2]] -> 0 | G60: 7883
B61: 2024-11-24 | D61: =D60+Données4[[#This Row],[KILOMÉTRAGE 1]] -> 0 | F61: =F60+Données4[[#This Row],[Colonne2]] -> 0 | G61: 7883
B62: 2024-11-25 | D62: =D61+Données4[[#This Row],[KILOMÉTRAGE 1]] -> 0 | F62: =F61+Données4[[#This Row],[Colonne2]] -> 0 | G62: 7883
B63: 2024-11-26 | D63: =D62+Données4[[#This Row],[KILOMÉTRAGE 1]] -> 0 | F63: =F62+Données4[[#This Row],[Colonne2]] -> 0 | G63: 7883
B64: 2024-11-27 | D64: =D63+Données4[[#This Row],[KILOMÉTRAGE 1]] -> 0 | F64: =F63+Données4[[#This Row],[Colonne2]] -> 0 | G64: 7883
B65: 2024-11-28 | D65: =D64+Données4[[#This Row],[KILOMÉTRAGE 1]] -> 0 | F65: =F64+Données4[[#This Row],[Colonne2]] -> 0 | G65: 7883
B66: 2024-11-29 | D66: =D65+Données4[[#This Row],[KILOMÉTRAGE 1]] -> 0 | F66: =F65+Données4[[#This Row],[Colonne2]] -> 0 | G66: 7883
B67: 2024-11-30 | D67: =D66+Données4[[#This Row],[KILOMÉTRAGE 1]] -> 0 | F67: =F66+Données4[[#This Row],[Colonne2]] -> 0 | G67: 7883
B68: 2024-12-01 | D68: =D67+Données4[[#This Row],[KILOMÉTRAGE 1]] -> 0 | F68: =F67+Données4[[#This Row],[Colonne2]] -> 0 | G68: 7883
B69: 2024-12-02 | D69: =D68+Données4[[#This Row],[KILOMÉTRAGE 1]] -> 0 | F69: =F68+Données4[[#This Row],[Colonne2]] -> 0 | G69: 7883
B70: 2024-12-03 | D70: =D69+Données4[[#This Row],[KILOMÉTRAGE 1]] -> 0 | F70: =F69+Données4[[#This Row],[Colonne2]] -> 0 | G70: 7883
B71: 2024-12-04 | D71: =D70+Données4[[#This Row],[KILOMÉTRAGE 1]] -> 0 | F71: =F70+Données4[[#This Row],[Colonne2]] -> 0 | G71: 7883
B72: 2024-12-05 | D72: =D71+Données4[[#This Row],[KILOMÉTRAGE 1]] -> 0 | F72: =F71+Données4[[#This Row],[Colonne2]] -> 0 | G72: 7883
B73: 2024-12-06 | D73: =D72+Données4[[#This Row],[KILOMÉTRAGE 1]] -> 0 | F73: =F72+Données4[[#This Row],[Colonne2]] -> 0 | G73: 7883
B74: 2024-12-07 | D74: =D73+Données4[[#This Row],[KILOMÉTRAGE 1]] -> 0 | F74: =F73+Données4[[#This Row],[Colonne2]] -> 0 | G74: 7883
B75: 2024-12-08 | D75: =D74+Données4[[#This Row],[KILOMÉTRAGE 1]] -> 0 | F75: =F74+Données4[[#This Row],[Colonne2]] -> 0 | G75: 7883
B76: 2024-12-09 | D76: =D75+Données4[[#This Row],[KILOMÉTRAGE 1]] -> 0 | F76: =F75+Données4[[#This Row],[Colonne2]] -> 0 | G76: 7883
B77: 2024-12-10 | D77: =D76+Données4[[#This Row],[KILOMÉTRAGE 1]] -> 0 | F77: =F76+Données4[[#This Row],[Colonne2]] -> 0 | G77: 7883
B78: 2024-12-11 | D78: =D77+Données4[[#This Row],[KILOMÉTRAGE 1]] -> 0 | F78: =F77+Données4[[#This Row],[Colonne2]] -> 0 | G78: 7883
B79: 2024-12-12 | D79: =D78+Données4[[#This Row],[KILOMÉTRAGE 1]] -> 0 | F79: =F78+Données4[[#This Row],[Colonne2]] -> 0 | G79: 7883
B80: 2024-12-13 | D80: =D79+Données4[[#This Row],[KILOMÉTRAGE 1]] -> 0 | F80: =F79+Données4[[#This Row],[Colonne2]] -> 0 | G80: 7883
B81: 2024-12-14 | D81: =D80+Données4[[#This Row],[KILOMÉTRAGE 1]] -> 0 | F81: =F80+Données4[[#This Row],[Colonne2]] -> 0 | G81: 7883
B82: 2024-12-15 | D82: =D81+Données4[[#This Row],[KILOMÉTRAGE 1]] -> 0 | F82: =F81+Données4[[#This Row],[Colonne2]] -> 0 | G82: 7883
B83: 2024-12-16 | D83: =D82+Données4[[#This Row],[KILOMÉTRAGE 1]] -> 0 | F83: =F82+Données4[[#This Row],[Colonne2]] -> 0 | G83: 7883
B84: 2024-12-17 | D84: =D83+Données4[[#This Row],[KILOMÉTRAGE 1]] -> 0 | F84: =F83+Données4[[#This Row],[Colonne2]] -> 0 | G84: 7883
B85: 2024-12-18 | D85: =D84+Données4[[#This Row],[KILOMÉTRAGE 1]] -> 0 | F85: =F84+Données4[[#This Row],[Colonne2]] -> 0 | G85: 7883
B86: 2024-12-19 | D86: =D85+Données4[[#This Row],[KILOMÉTRAGE 1]] -> 0 | F86: =F85+Données4[[#This Row],[Colonne2]] -> 0 | G86: 7883
B87: 2024-12-20 | D87: =D86+Données4[[#This Row],[KILOMÉTRAGE 1]] -> 0 | F87: =F86+Données4[[#This Row],[Colonne2]] -> 0 | G87: 7883
B88: 2024-12-21 | D88: =D87+Données4[[#This Row],[KILOMÉTRAGE 1]] -> 0 | F88: =F87+Données4[[#This Row],[Colonne2]] -> 0 | G88: 7883
B89: 2024-12-22 | D89: =D88+Données4[[#This Row],[KILOMÉTRAGE 1]] -> 0 | F89: =F88+Données4[[#This Row],[Colonne2]] -> 0 | G89: 7883
B90: 2024-12-23 | D90: =D89+Données4[[#This Row],[KILOMÉTRAGE 1]] -> 0 | F90: =F89+Données4[[#This Row],[Colonne2]] -> 0 | G90: 7883
B91: 2024-12-24 | D91: =D90+Données4[[#This Row],[KILOMÉTRAGE 1]] -> 0 | F91: =F90+Données4[[#This Row],[Colonne2]] -> 0 | G91: 7883
B92: 2024-12-25 | D92: =D91+Données4[[#This Row],[KILOMÉTRAGE 1]] -> 0 | F92: =F91+Données4[[#This Row],[Colonne2]] -> 0 | G92: 7883
B93: 2024-12-26 | D93: =D92+Données4[[#This Row],[KILOMÉTRAGE 1]] -> 0 | F93: =F92+Données4[[#This Row],[Colonne2]] -> 0 | G93: 7883
B94: 2024-12-27 | D94: =D93+Données4[[#This Row],[KILOMÉTRAGE 1]] -> 0 | F94: =F93+Données4[[#This Row],[Colonne2]] -> 0 | G94: 7883
B95: 2024-12-28 | D95: =D94+Données4[[#This Row],[KILOMÉTRAGE 1]] -> 0 | F95: =F94+Données4[[#This Row],[Colonne2]] -> 0 | G95: 7883
B96: 2024-12-29 | D96: =D95+Données4[[#This Row],[KILOMÉTRAGE 1]] -> 0 | F96: =F95+Données4[[#This Row],[Colonne2]] -> 0 | G96: 7883
B97: 2024-12-30 | D97: =D96+Données4[[#This Row],[KILOMÉTRAGE 1]] -> 0 | F97: =F96+Données4[[#This Row],[Colonne2]] -> 0 | G97: 7883
B98: 2024-12-31 | D98: =D97+Données4[[#This Row],[KILOMÉTRAGE 1]] -> 0 | F98: =F97+Données4[[#This Row],[Colonne2]] -> 0 | G98: 7883
B99: 2025-01-01 | D99: =D98+Données4[[#This Row],[KILOMÉTRAGE 1]] -> 0 | F99: =F98+Données4[[#This Row],[Colonne2]] -> 0 | G99: 7883
B100: 2025-01-02 | D100: =D99+Données4[[#This Row],[KILOMÉTRAGE 1]] -> 0 | F100: =F99+Données4[[#This Row],[Colonne2]] -> 0 | G100: 7883
B101: 2025-01-03 | D101: =D100+Données4[[#This Row],[KILOMÉTRAGE 1]] -> 0 | F101: =F100+Données4[[#This Row],[Colonne2]] -> 0 | G101: 7883
B102: 2025-01-04 | D102: =D101+Données4[[#This Row],[KILOMÉTRAGE 1]] -> 0 | F102: =F101+Données4[[#This Row],[Colonne2]] -> 0 | G102: 7883
B103: 2025-01-05 | D103: =D102+Données4[[#This Row],[KILOMÉTRAGE 1]] -> 0 | F103: =F102+Données4[[#This Row],[Colonne2]] -> 0 | G103: 7883
B104: 2025-01-06 | D104: =D103+Données4[[#This Row],[KILOMÉTRAGE 1]] -> 0 | F104: =F103+Données4[[#This Row],[Colonne2]] -> 0 | G104: 7883
B105: 2025-01-07 | D105: =D104+Données4[[#This Row],[KILOMÉTRAGE 1]] -> 0 | F105: =F104+Données4[[#This Row],[Colonne2]] -> 0 | G105: 7883
B106: 2025-01-08 | D106: =D105+Données4[[#This Row],[KILOMÉTRAGE 1]] -> 0 | F106: =F105+Données4[[#This Row],[Colonne2]] -> 0 | G106: 7883
B107: 2025-01-09 | D107: =D106+Données4[[#This Row],[KILOMÉTRAGE 1]] -> 0 | F107: =F106+Données4[[#This Row],[Colonne2]] -> 0 | G107: 7883
B108: 2025-01-10 | D108: =D107+Données4[[#This Row],[KILOMÉTRAGE 1]] -> 0 | F108: 0 | G108: 7883
B109: 2025-01-11 | D109: =D108+Données4[[#This Row],[KILOMÉTRAGE 1]] -> 0 | F109: =F108+Données4[[#This Row],[Colonne2]] -> 0 | G109: 7883
B110: 2025-01-12 | D110: =D109+Données4[[#This Row],[KILOMÉTRAGE 1]] -> 0 | F110: =F109+Données4[[#This Row],[Colonne2]] -> 0 | G110: 7883
B111: 2025-01-13 | D111: =D110+Données4[[#This Row],[KILOMÉTRAGE 1]] -> 0 | F111: =F110+Données4[[#This Row],[Colonne2]] -> 0 | G111: 7883
B112: 2025-01-14 | D112: =D111+Données4[[#This Row],[KILOMÉTRAGE 1]] -> 0 | F112: =F111+Données4[[#This Row],[Colonne2]] -> 0 | G112: 7883
B113: 2025-01-15 | D113: =D112+Données4[[#This Row],[KILOMÉTRAGE 1]] -> 0 | F113: =F112+Données4[[#This Row],[Colonne2]] -> 0 | G113: 7883
B114: 2025-01-16 | D114: =D113+Données4[[#This Row],[KILOMÉTRAGE 1]] -> 0 | F114: =F113+Données4[[#This Row],[Colonne2]] -> 0 | G114: 7883
B115: 2025-01-17 | D115: =D114+Données4[[#This Row],[KILOMÉTRAGE 1]] -> 0 | F115: =F114+Données4[[#This Row],[Colonne2]] -> 0 | G115: 7883
B116: 2025-01-18 | D116: =D115+Données4[[#This Row],[KILOMÉTRAGE 1]] -> 0 | F116: =F115+Données4[[#This Row],[Colonne2]] -> 0 | G116: 7883
B117: 2025-01-19 | D117: =D116+Données4[[#This Row],[KILOMÉTRAGE 1]] -> 0 | F117: =F116+Données4[[#This Row],[Colonne2]] -> 0 | G117: 7883
B118: 2025-01-20 | D118: =D117+Données4[[#This Row],[KILOMÉTRAGE 1]] -> 0 | F118: =F117+Données4[[#This Row],[Colonne2]] -> 0 | G118: 7883
B119: 2025-01-21 | D119: =D118+Données4[[#This Row],[KILOMÉTRAGE 1]] -> 0 | F119: =F118+Données4[[#This Row],[Colonne2]] -> 0 | G119: 7883
B120: 2025-01-22 | D120: =D119+Données4[[#This Row],[KILOMÉTRAGE 1]] -> 0 | F120: =F119+Données4[[#This Row],[Colonne2]] -> 0 | G120: 7883
B121: 2025-01-23 | D121: =D120+Données4[[#This Row],[KILOMÉTRAGE 1]] -> 0 | F121: =F120+Données4[[#This Row],[Colonne2]] -> 0 | G121: 7883
B122: 2025-01-24 | D122: =D121+Données4[[#This Row],[KILOMÉTRAGE 1]] -> 0 | F122: =F121+Données4[[#This Row],[Colonne2]] -> 0 | G122: 7883
B123: 2025-01-25 | D123: =D122+Données4[[#This Row],[KILOMÉTRAGE 1]] -> 0 | F123: =F122+Données4[[#This Row],[Colonne2]] -> 0 | G123: 7883
B124: 2025-01-26 | D124: =D123+Données4[[#This Row],[KILOMÉTRAGE 1]] -> 0 | F124: =F123+Données4[[#This Row],[Colonne2]] -> 0 | G124: 7883
B125: 2025-01-27 | D125: =D124+Données4[[#This Row],[KILOMÉTRAGE 1]] -> 0 | F125: =F124+Données4[[#This Row],[Colonne2]] -> 0 | G125: 7883
B126: 2025-01-28 | D126: =D125+Données4[[#This Row],[KILOMÉTRAGE 1]] -> 0 | F126: =F125+Données4[[#This Row],[Colonne2]] -> 0 | G126: 7883
B127: 2025-01-29 | D127: =D126+Données4[[#This Row],[KILOMÉTRAGE 1]] -> 0 | F127: =F126+Données4[[#This Row],[Colonne2]] -> 0 | G127: 7883
B128: 2025-01-30 | D128: =D127+Données4[[#This Row],[KILOMÉTRAGE 1]] -> 0 | F128: =F127+Données4[[#This Row],[Colonne2]] -> 0 | G128: 7883
B129: 2025-01-31 | D129: =D128+Données4[[#This Row],[KILOMÉTRAGE 1]] -> 0 | F129: =F128+Données4[[#This Row],[Colonne2]] -> 0 | G129: 7883
B130: 2025-02-01 | D130: =D129+Données4[[#This Row],[KILOMÉTRAGE 1]] -> 0 | F130: =F129+Données4[[#This Row],[Colonne2]] -> 0 | G130: 7883
B131: 2025-02-02 | D131: =D130+Données4[[#This Row],[KILOMÉTRAGE 1]] -> 0 | F131: =F130+Données4[[#This Row],[Colonne2]] -> 0 | G131: 7883
B132: 2025-02-03 | D132: =D131+Données4[[#This Row],[KILOMÉTRAGE 1]] -> 0 | F132: =F131+Données4[[#This Row],[Colonne2]] -> 0 | G132: 7883
B133: 2025-02-04 | D133: =D132+Données4[[#This Row],[KILOMÉTRAGE 1]] -> 0 | F133: =F132+Données4[[#This Row],[Colonne2]] -> 0 | G133: 7883
B134: 2025-02-05 | D134: =D133+Données4[[#This Row],[KILOMÉTRAGE 1]] -> 0 | F134: =F133+Données4[[#This Row],[Colonne2]] -> 0 | G134: 7883
B135: 2025-02-06 | D135: =D134+Données4[[#This Row],[KILOMÉTRAGE 1]] -> 0 | F135: =F134+Données4[[#This Row],[Colonne2]] -> 0 | G135: 7883
B136: 2025-02-07 | D136: =D135+Données4[[#This Row],[KILOMÉTRAGE 1]] -> 0 | F136: =F135+Données4[[#This Row],[Colonne2]] -> 0 | G136: 7883
B137: 2025-02-08 | D137: =D136+Données4[[#This Row],[KILOMÉTRAGE 1]] -> 0 | F137: =F136+Données4[[#This Row],[Colonne2]] -> 0 | G137: 7883
B138: 2025-02-09 | D138: =D137+Données4[[#This Row],[KILOMÉTRAGE 1]] -> 0 | F138: =F137+Données4[[#This Row],[Colonne2]] -> 0 | G138: 7883
B139: 2025-02-10 | D139: =D138+Données4[[#This Row],[KILOMÉTRAGE 1]] -> 0 | F139: =F138+Données4[[#This Row],[Colonne2]] -> 0 | G139: 7883
B140: 2025-02-11 | D140: =D139+Données4[[#This Row],[KILOMÉTRAGE 1]] -> 0 | F140: =F139+Données4[[#This Row],[Colonne2]] -> 0 | G140: 7883
B141: 2025-02-12 | D141: =D140+Données4[[#This Row],[KILOMÉTRAGE 1]] -> 0 | F141: =F140+Données4[[#This Row],[Colonne2]] -> 0 | G141: 7883
B142: 2025-02-13 | D142: =D141+Données4[[#This Row],[KILOMÉTRAGE 1]] -> 0 | F142: =F141+Données4[[#This Row],[Colonne2]] -> 0 | G142: 7883
B143: 2025-02-14 | D143: =D142+Données4[[#This Row],[KILOMÉTRAGE 1]] -> 0 | F143: =F142+Données4[[#This Row],[Colonne2]] -> 0 | G143: 7883
B144: 2025-02-15 | D144: =D143+Données4[[#This Row],[KILOMÉTRAGE 1]] -> 0 | F144: =F143+Données4[[#This Row],[Colonne2]] -> 0 | G144: 7883
B145: 2025-02-16 | D145: =D144+Données4[[#This Row],[KILOMÉTRAGE 1]] -> 0 | F145: =F144+Données4[[#This Row],[Colonne2]] -> 0 | G145: 7883
B146: 2025-02-17 | D146: =D145+Données4[[#This Row],[KILOMÉTRAGE 1]] -> 0 | F146: =F145+Données4[[#This Row],[Colonne2]] -> 0 | G146: 7883
B147: 2025-02-18 | D147: =D146+Données4[[#This Row],[KILOMÉTRAGE 1]] -> 0 | F147: =F146+Données4[[#This Row],[Colonne2]] -> 0 | G147: 7883
B148: 2025-02-19 | D148: =D147+Données4[[#This Row],[KILOMÉTRAGE 1]] -> 0 | F148: =F147+Données4[[#This Row],[Colonne2]] -> 0 | G148: 7883
B149: 2025-02-20 | D149: =D148+Données4[[#This Row],[KILOMÉTRAGE 1]] -> 0 | F149: =F148+Données4[[#This Row],[Colonne2]] -> 0 | G149: 7883
B150: 2025-02-21 | D150: =D149+Données4[[#This Row],[KILOMÉTRAGE 1]] -> 0 | F150: =F149+Données4[[#This Row],[Colonne2]] -> 0 | G150: 7883
B151: 2025-02-22 | D151: =D150+Données4[[#This Row],[KILOMÉTRAGE 1]] -> 0 | F151: =F150+Données4[[#This Row],[Colonne2]] -> 0 | G151: 7883
B152: 2025-02-23 | D152: =D151+Données4[[#This Row],[KILOMÉTRAGE 1]] -> 0 | F152: =F151+Données4[[#This Row],[Colonne2]] -> 0 | G152: 7883
B153: 2025-02-24 | D153: =D152+Données4[[#This Row],[KILOMÉTRAGE 1]] -> 0 | F153: =F152+Données4[[#This Row],[Colonne2]] -> 0 | G153: 7883
B154: 2025-02-25 | D154: =D153+Données4[[#This Row],[KILOMÉTRAGE 1]] -> 0 | F154: =F153+Données4[[#This Row],[Colonne2]] -> 0 | G154: 7883
B155: 2025-02-26 | D155: =D154+Données4[[#This Row],[KILOMÉTRAGE 1]] -> 0 | F155: =F154+Données4[[#This Row],[Colonne2]] -> 0 | G155: 7883
B156: 2025-02-27 | D156: =D155+Données4[[#This Row],[KILOMÉTRAGE 1]] -> 0 | F156: =F155+Données4[[#This Row],[Colonne2]] -> 0 | G156: 7883
B157: 2025-02-28 | D157: =D156+Données4[[#This Row],[KILOMÉTRAGE 1]] -> 0 | F157: =F156+Données4[[#This Row],[Colonne2]] -> 0 | G157: 7883
B158: 2025-03-01 | D158: =D157+Données4[[#This Row],[KILOMÉTRAGE 1]] -> 0 | F158: =F157+Données4[[#This Row],[Colonne2]] -> 0 | G158: 7883
B159: 2025-03-02 | D159: =D158+Données4[[#This Row],[KILOMÉTRAGE 1]] -> 0 | F159: =F158+Données4[[#This Row],[Colonne2]] -> 0 | G159: 7883
B160: 2025-03-03 | D160: =D159+Données4[[#This Row],[KILOMÉTRAGE 1]] -> 0 | F160: =F159+Données4[[#This Row],[Colonne2]] -> 0 | G160: 7883
B161: 2025-03-04 | D161: =D160+Données4[[#This Row],[KILOMÉTRAGE 1]] -> 0 | F161: =F160+Données4[[#This Row],[Colonne2]] -> 0 | G161: 7883
B162: 2025-03-05 | D162: =D161+Données4[[#This Row],[KILOMÉTRAGE 1]] -> 0 | F162: =F161+Données4[[#This Row],[Colonne2]] -> 0 | G162: 7883
B163: 2025-03-06 | D163: =D162+Données4[[#This Row],[KILOMÉTRAGE 1]] -> 0 | F163: =F162+Données4[[#This Row],[Colonne2]] -> 0 | G163: 7883
B164: 2025-03-07 | D164: =D163+Données4[[#This Row],[KILOMÉTRAGE 1]] -> 0 | F164: =F163+Données4[[#This Row],[Colonne2]] -> 0 | G164: 7883
B165: 2025-03-08 | D165: =D164+Données4[[#This Row],[KILOMÉTRAGE 1]] -> 0 | F165: =F164+Données4[[#This Row],[Colonne2]] -> 0 | G165: 7883
B166: 2025-03-09 | D166: =D165+Données4[[#This Row],[KILOMÉTRAGE 1]] -> 0 | F166: =F165+Données4[[#This Row],[Colonne2]] -> 0 | G166: 7883
B167: 2025-03-10 | D167: =D166+Données4[[#This Row],[KILOMÉTRAGE 1]] -> 0 | F167: =F166+Données4[[#This Row],[Colonne2]] -> 0 | G167: 7883
B168: 2025-03-11 | D168: =D167+Données4[[#This Row],[KILOMÉTRAGE 1]] -> 0 | F168: =F167+Données4[[#This Row],[Colonne2]] -> 0 | G168: 7883
B169: 2025-03-12 | D169: =D168+Données4[[#This Row],[KILOMÉTRAGE 1]] -> 0 | F169: =F168+Données4[[#This Row],[Colonne2]] -> 0 | G169: 7883
B170: 2025-03-13 | D170: =D169+Données4[[#This Row],[KILOMÉTRAGE 1]] -> 0 | F170: =F169+Données4[[#This Row],[Colonne2]] -> 0 | G170: 7883
B171: 2025-03-14 | D171: =D170+Données4[[#This Row],[KILOMÉTRAGE 1]] -> 0 | F171: =F170+Données4[[#This Row],[Colonne2]] -> 0 | G171: 7883
B172: 2025-03-15 | D172: =D171+Données4[[#This Row],[KILOMÉTRAGE 1]] -> 0 | F172: =F171+Données4[[#This Row],[Colonne2]] -> 0 | G172: 7883
B173: 2025-03-16 | D173: =D172+Données4[[#This Row],[KILOMÉTRAGE 1]] -> 0 | F173: =F172+Données4[[#This Row],[Colonne2]] -> 0 | G173: 7883
B174: 2025-03-17 | D174: =D173+Données4[[#This Row],[KILOMÉTRAGE 1]] -> 0 | F174: =F173+Données4[[#This Row],[Colonne2]] -> 0 | G174: 7883
B175: 2025-03-18 | D175: =D174+Données4[[#This Row],[KILOMÉTRAGE 1]] -> 0 | F175: =F174+Données4[[#This Row],[Colonne2]] -> 0 | G175: 7883
B176: 2025-03-19 | D176: =D175+Données4[[#This Row],[KILOMÉTRAGE 1]] -> 0 | F176: =F175+Données4[[#This Row],[Colonne2]] -> 0 | G176: 7883
B177: 2025-03-20 | D177: =D176+Données4[[#This Row],[KILOMÉTRAGE 1]] -> 0 | F177: =F176+Données4[[#This Row],[Colonne2]] -> 0 | G177: 7883
B178: 2025-03-21 | D178: =D177+Données4[[#This Row],[KILOMÉTRAGE 1]] -> 0 | F178: =F177+Données4[[#This Row],[Colonne2]] -> 0 | G178: 7883
B179: 2025-03-22 | D179: =D178+Données4[[#This Row],[KILOMÉTRAGE 1]] -> 0 | F179: =F178+Données4[[#This Row],[Colonne2]] -> 0 | G179: 7883
B180: 2025-03-23 | D180: =D179+Données4[[#This Row],[KILOMÉTRAGE 1]] -> 0 | F180: =F179+Données4[[#This Row],[Colonne2]] -> 0 | G180: 7883
B181: 2025-03-24 | D181: =D180+Données4[[#This Row],[KILOMÉTRAGE 1]] -> 0 | F181: =F180+Données4[[#This Row],[Colonne2]] -> 0 | G181: 7883
B182: 2025-03-25 | D182: =D181+Données4[[#This Row],[KILOMÉTRAGE 1]] -> 0 | F182: =F181+Données4[[#This Row],[Colonne2]] -> 0 | G182: 7883
B183: 2025-03-26 | D183: =D182+Données4[[#This Row],[KILOMÉTRAGE 1]] -> 0 | F183: =F182+Données4[[#This Row],[Colonne2]] -> 0 | G183: 7883
B184: 2025-03-27 | D184: =D183+Données4[[#This Row],[KILOMÉTRAGE 1]] -> 0 | F184: =F183+Données4[[#This Row],[Colonne2]] -> 0 | G184: 7883
B185: 2025-03-28 | D185: =D184+Données4[[#This Row],[KILOMÉTRAGE 1]] -> 0 | F185: =F184+Données4[[#This Row],[Colonne2]] -> 0 | G185: 7883
B186: 2025-03-29 | D186: =D185+Données4[[#This Row],[KILOMÉTRAGE 1]] -> 0 | F186: =F185+Données4[[#This Row],[Colonne2]] -> 0 | G186: 7883
B187: 2025-03-30 | D187: =D186+Données4[[#This Row],[KILOMÉTRAGE 1]] -> 0 | F187: =F186+Données4[[#This Row],[Colonne2]] -> 0 | G187: 7883
B188: 2025-03-31 | D188: =D187+Données4[[#This Row],[KILOMÉTRAGE 1]] -> 0 | F188: =F187+Données4[[#This Row],[Colonne2]] -> 0 | G188: 7883
D189: =D188+Données4[[#This Row],[KILOMÉTRAGE 1]] -> 0 | F189: =F188+Données4[[#This Row],[Colonne2]] -> 0
D190: =D189+Données4[[#This Row],[KILOMÉTRAGE 1]] -> 0 | F190: =F189+Données4[[#This Row],[Colonne2]] -> 0
D191: =D190+Données4[[#This Row],[KILOMÉTRAGE 1]] -> 0 | F191: =F190+Données4[[#This Row],[Colonne2]] -> 0
D192: =D191+Données4[[#This Row],[KILOMÉTRAGE 1]] -> 0 | F192: =F191+Données4[[#This Row],[Colonne2]] -> 0
D193: =D192+Données4[[#This Row],[KILOMÉTRAGE 1]] -> 0 | F193: =F192+Données4[[#This Row],[Colonne2]] -> 0
D194: =D193+Données4[[#This Row],[KILOMÉTRAGE 1]] -> 0 | F194: =F193+Données4[[#This Row],[Colonne2]] -> 0
D195: =D194+Données4[[#This Row],[KILOMÉTRAGE 1]] -> 0 | F195: =F194+Données4[[#This Row],[Colonne2]] -> 0
D196: =D195+Données4[[#This Row],[KILOMÉTRAGE 1]] -> 0 | F196: =F195+Données4[[#This Row],[Colonne2]] -> 0
D197: =D196+Données4[[#This Row],[KILOMÉTRAGE 1]] -> 0 | F197: =F196+Données4[[#This Row],[Colonne2]] -> 0
D198: =D197+Données4[[#This Row],[KILOMÉTRAGE 1]] -> 0 | F198: =F197+Données4[[#This Row],[Colonne2]] -> 0
D199: =D198+Données4[[#This Row],[KILOMÉTRAGE 1]] -> 0 | F199: =F198+Données4[[#This Row],[Colonne2]] -> 0
D200: =D199+Données4[[#This Row],[KILOMÉTRAGE 1]] -> 0 | F200: =F199+Données4[[#This Row],[Colonne2]] -> 0
D201: =D200+Données4[[#This Row],[KILOMÉTRAGE 1]] -> 0 | F201: =F200+Données4[[#This Row],[Colonne2]] -> 0
D202: =D201+Données4[[#This Row],[KILOMÉTRAGE 1]] -> 0 | F202: =F201+Données4[[#This Row],[Colonne2]] -> 0
... 179 more rows

Sheet Recap
A1: Date | B1: ACTIVITÉ | C1: CV | D1: CHIFFRE jour | E1: certifcats scannés | H1: Année | I1: 1er envoi | J1: Certificats Reçus | K1: Certificats Scannés | M1: Estimation Stock Certificats de vie | N1: Estimation Stock caisses Certificat de vie | O1: En Attente de Reception | V1: 2023 | W1: 1
A2: 2023-06-22 | B2: certificat | C2: CV202306 | D2: 148 | E2: ='2023'!E7 -> 8 | F2: 125902 | H2: 2023-06-22 | I2: 123902 | J2: =SUMIF(C:C,"CV"&YEAR(H2)&TEXT(MONTH(H2),"00"),D:D) -> 106409 | K2: =SUMIF(C:C,"CV"&YEAR(H2)&TEXT(MONTH(H2),"00"),E:E) -> 108537 | M2: =J3-K3 -> -3646.42 | N2: =M2/600 -> -6.077366667 | O2: =I3-J3 -> 22001.42 | V2: 2024 | W2: 2
A3: 2023-06-23 | B3: certificat | C3: CV202306 | D3: 1411 | E3: ='2023'!E8 -> 0 | F3: 125902 | H3: 2023-10-01 | I3: 66693 | J3: =SUMIF(C:C,"CV"&YEAR(H3)&TEXT(MONTH(H3),"00"),D:D) -> 44691.58 | K3: =SUMIF(C:C,"CV"&YEAR(H3)&TEXT(MONTH(H3),"00"),E:E) -> 48338 | W3: 3
A4: 2023-06-24 | C4: CV202306 | D4: 0 | E4: ='2023'!E9 -> 0
A5: 2023-06-25 | C5: CV202306 | D5: 0 | E5: ='2023'!E10 -> 0
A6: 2023-06-26 | B6: certificat | C6: CV202306 | D6: 4545 | E6: ='2023'!E11 -> 12 | F6: 125902
A7: 2023-06-27 | B7: certificat | C7: CV202306 | D7: 11134 | E7: ='2023'!E12 -> 0 | F7: 125902
A8: 2023-06-28 | B8: certificat | C8: CV202306 | D8: 6020 | E8: ='2023'!E13 -> 4 | F8: 125902
A9: 2023-06-29 | B9: certificat | C9: CV202306 | D9: 764 | E9: ='2023'!E14 -> 0 | F9: 125902
A10: 2023-06-30 | B10: certificat | C10: CV202306 | D10: 6485 | E10: ='2023'!E15 -> 0
A11: 2023-07-01 | C11: CV202306 | D11: 0 | E11: ='2023'!E16 -> 0
A12: 2023-07-02 | C12: CV202306 | D12: 0 | E12: ='2023'!E17 -> 0
A13: 2023-07-03 | B13: certificat | C13: CV202306 | D13: 23815 | E13: ='2023'!E18 -> 0 | F13: 125902
A14: 2023-07-04 | B14: certificat | C14: CV202306 | D14: 4215 | E14: ='2023'!E19 -> 852 | F14: 125902
A15: 2023-07-05 | B15: certificat | C15: CV202306 | D15: 5208 | E15: ='2023'!E20 -> 2686 | F15: 125902
A16: 2023-07-06 | B16: certificat | C16: CV202306 | D16: 4507 | E16: ='2023'!E21 -> 3024 | F16: 125902
A17: 2023-07-07 | B17: certificat | C17: CV202306 | D17: 4457 | E17: ='2023'!E22 -> 2496 | F17: 125902
A18: 2023-07-08 | C18: CV202306 | D18: 0 | E18: ='2023'!E23 -> 0
A19: 2023-07-09 | C19: CV202306 | D19: 0 | E19: ='2023'!E24 -> 0
A20: 2023-07-10 | B20: certificat | C20: CV202306 | D20: 7807 | E20: ='2023'!E25 -> 4226 | F20: 125902
A21: 2023-07-11 | B21: certificat | C21: CV202306 | D21: 5604 | E21: ='2023'!E26 -> 4930 | F21: 125902
A22: 2023-07-12 | B22: certificat | C22: CV202306 | D22: 4597 | E22: ='2023'!E27 -> 5028 | F22: 125902
A23: 2023-07-13 | B23: certificat | C23: CV202306 | D23: 1578 | E23: ='2023'!E28 -> 4920 | F23: 125902
A24: 2023-07-14 | B24: certificat | C24: CV202306 | D24: 0 | E24: ='2023'!E29 -> 0 | F24: 125902
A25: 2023-07-15 | C25: CV202306 | D25: 0 | E25: ='2023'!E30 -> 0
A26: 2023-07-16 | C26: CV202306 | D26: 0 | E26: ='2023'!E31 -> 0
A27: 2023-07-17 | B27: certificat | C27: CV202306 | D27: 2420 | E27: ='2023'!E32 -> 4988 | F27: 125902
A28: 2023-07-18 | B28: certificat | C28: CV202306 | D28: 824 | E28: ='2023'!E33 -> 6895 | F28: 125902
A29: 2023-07-19 | B29: certificat | C29: CV202306 | D29: 828 | E29: ='2023'!E34 -> 5759 | F29: 125902
A30: 2023-07-20 | B30: certificat | C30: CV202306 | D30: 887 | E30: ='2023'!E35 -> 6126 | F30: 125902
A31: 2023-07-21 | B31: certificat | C31: CV202306 | D31: 824 | E31: ='2023'!E36 -> 4015 | F31: 125902
A32: 2023-07-22 | C32: CV202306 | D32: 0 | E32: ='2023'!E37 -> 0
A33: 2023-07-23 | C33: CV202306 | D33: 0 | E33: ='2023'!E38 -> 0
A34: 2023-07-24 | B34: certificat | C34: CV202306 | D34: 2 | E34: ='2023'!E39 -> 6293 | F34: 125902
A35: 2023-07-25 | B35: certificat | C35: CV202306 | D35: 2112 | E35: ='2023'!E40 -> 0 | F35: 125902
A36: 2023-07-26 | B36: certificat | C36: CV202306 | D36: 349 | E36: ='2023'!E41 -> 0 | F36: 125902
A37: 2023-07-27 | B37: certificat | C37: CV202306 | D37: 449 | E37: ='2023'!E42 -> 13266 | F37: 125902
A38: 2023-07-28 | B38: certificat | C38: CV202306 | D38: 446 | E38: ='2023'!E43 -> 42 | F38: 125902
A39: 2023-07-29 | B39: certificat | C39: CV202306 | D39: 0 | E39: ='2023'!E44 -> 0 | F39: 125902
A40: 2023-07-30 | B40: certificat | C40: CV202306 | D40: 0 | E40: ='2023'!E45 -> 2836 | F40: 125902
A41: 2023-07-31 | B41: certificat | C41: CV202306 | D41: 366 | E41: ='2023'!E46 -> 0 | F41: 125902
A42: 2023-08-01 | B42: certificat | C42: CV202306 | D42: 574 | E42: ='2023'!E47 -> 8377 | F42: 125902
A43: 2023-08-02 | B43: certificat | C43: CV202306 | D43: 0 | E43: ='2023'!E48 -> 1 | F43: 125902
A44: 2023-08-03 | C44: CV202306 | D44: 473 | E44: ='2023'!E49 -> 3132
A45: 2023-08-04 | C45: CV202306 | D45: 270 | E45: ='2023'!E50 -> 0
A46: 2023-08-05 | B46: certificat | C46: CV202306 | D46: 0 | E46: ='2023'!E51 -> 0 | F46: 125902
A47: 2023-08-06 | B47: certificat | C47: CV202306 | D47: 0 | E47: ='2023'!E52 -> 0 | F47: 125902
A48: 2023-08-07 | B48: certificat | C48: CV202306 | D48: 159 | E48: ='2023'!E53 -> 2951 | F48: 125902
A49: 2023-08-08 | B49: certificat | C49: CV202306 | D49: 291 | E49: ='2023'!E54 -> 109 | F49: 125902
A50: 2023-08-09 | B50: certificat | C50: CV202306 | D50: 137 | E50: ='2023'!E55 -> 3484 | F50: 125902
A51: 2023-08-10 | C51: CV202306 | D51: 128 | E51: ='2023'!E56 -> 0
A52: 2023-08-11 | C52: CV202306 | D52: 113 | E52: ='2023'!E57 -> 3406
A53: 2023-08-12 | C53: CV202306 | D53: 0 | E53: ='2023'!E58 -> 0
A54: 2023-08-13 | C54: CV202306 | D54: 0 | E54: ='2023'!E59 -> 0
A55: 2023-08-14 | B55: certificat | C55: CV202306 | D55: 0 | E55: ='2023'!E60 -> 0 | F55: 125902
A56: 2023-08-15 | B56: certificat | C56: CV202306 | D56: 0 | E56: ='2023'!E61 -> 0 | F56: 125902
A57: 2023-08-16 | B57: certificat | C57: CV202306 | D57: 257 | E57: ='2023'!E62 -> 0 | F57: 125902
A58: 2023-08-17 | C58: CV202306 | D58: 75 | E58: ='2023'!E63 -> 3388
A59: 2023-08-18 | C59: CV202306 | D59: 67 | E59: ='2023'!E64 -> 3589
A60: 2023-08-19 | B60: certificat | C60: CV202306 | D60: 0 | E60: ='2023'!E65 -> 0 | F60: 125902
A61: 2023-08-20 | B61: certificat | C61: CV202306 | D61: 0 | E61: ='2023'!E66 -> 0 | F61: 125902
A62: 2023-08-21 | B62: certificat | C62: CV202306 | D62: 104 | E62: ='2023'!E67 -> 117 | F62: 125902
A63: 2023-08-22 | B63: certificat | C63: CV202306 | D63: 157 | E63: ='2023'!E68 -> 164 | F63: 125902
A64: 2023-08-23 | B64: certificat | C64: CV202306 | D64: 71 | E64: ='2023'!E69 -> 68 | F64: 125902
A65: 2023-08-24 | C65: CV202306 | D65: 56 | E65: ='2023'!E70 -> 59
A66: 2023-08-25 | C66: CV202306 | D66: 63 | E66: ='2023'!E71 -> 69
A67: 2023-08-26 | B67: certificat | C67: CV202306 | D67: 0 | E67: ='2023'!E72 -> 0 | F67: 125902
A68: 2023-08-27 | B68: certificat | C68: CV202306 | D68: 0 | E68: ='2023'!E73 -> 0 | F68: 125902
A69: 2023-08-28 | B69: certificat | C69: CV202306 | D69: 105 | E69: ='2023'!E74 -> 122 | F69: 125902
A70: 2023-08-29 | B70: certificat | C70: CV202306 | D70: 65 | E70: ='2023'!E75 -> 73 | F70: 125902
A71: 2023-08-30 | B71: certificat | C71: CV202306 | D71: 38 | E71: ='2023'!E76 -> 51 | F71: 125902
A72: 2023-08-31 | B72: certificat | C72: CV202306 | D72: 65 | E72: ='2023'!E77 -> 67 | F72: 125902
A73: 2023-09-01 | B73: certificat | C73: CV202306 | D73: 83 | E73: ='2023'!E78 -> 11 | F73: 125902
A74: 2023-09-02 | B74: certificat | C74: CV202306 | D74: 0 | E74: ='2023'!E79 -> 0 | F74: 125902
A75: 2023-09-03 | B75: certificat | C75: CV202306 | D75: 0 | E75: ='2023'!E80 -> 0 | F75: 125902
A76: 2023-09-04 | B76: certificat | C76: CV202306 | D76: 65 | E76: ='2023'!E81 -> 27 | F76: 125902
A77: 2023-09-05 | B77: certificat | C77: CV202306 | D77: 154 | E77: ='2023'!E82 -> 298 | F77: 125902
A78: 2023-09-06 | B78: certificat | C78: CV202306 | D78: 0 | E78: ='2023'!E83 -> 13 | F78: 125902
A79: 2023-09-07 | B79: certificat | C79: CV202306 | D79: 61 | E79: ='2023'!E84 -> 73 | F79: 125902
A80: 2023-09-08 | B80: certificat | C80: CV202306 | D80: 76 | E80: ='2023'!E85 -> 0 | F80: 125902
A81: 2023-09-09 | B81: certificat | C81: CV202306 | D81: 0 | E81: ='2023'!E86 -> 0 | F81: 125902
A82: 2023-09-10 | B82: certificat | C82: CV202306 | D82: 0 | E82: ='2023'!E87 -> 0 | F82: 125902
A83: 2023-09-11 | B83: certificat | C83: CV202306 | D83: 114 | E83: ='2023'!E88 -> 0 | F83: 125902
A84: 2023-09-12 | B84: certificat | C84: CV202306 | D84: 56 | E84: ='2023'!E89 -> 1 | F84: 125902
A85: 2023-09-13 | B85: certificat | C85: CV202306 | D85: 42 | E85: ='2023'!E90 -> 317 | F85: 125902
A86: 2023-09-14 | B86: certificat | C86: CV202306 | D86: 52 | E86: ='2023'!E91 -> 0 | F86: 125902
A87: 2023-09-15 | C87: CV202306 | D87: 66 | E87: ='2023'!E92 -> 139 | F87: 125902
A88: 2023-09-16 | C88: CV202306 | D88: 0 | E88: ='2023'!E93 -> 0 | F88: 125902
A89: 2023-09-17 | C89: CV202306 | D89: 0 | E89: ='2023'!E94 -> 0 | F89: 125902
A90: 2023-09-18 | C90: CV202306 | D90: 40 | E90: ='2023'!E95 -> 0 | F90: 125902
A91: 2023-09-19 | C91: CV202306 | D91: 125 | E91: ='2023'!E96 -> 9 | F91: 125902
A92: 2023-09-20 | C92: CV202306 | D92: 0 | E92: ='2023'!E97 -> 6
A93: 2023-09-21 | C93: CV202306 | D93: 87 | E93: ='2023'!E98 -> 1
A94: 2023-09-22 | C94: CV202306 | D94: 60 | E94: ='2023'!E99 -> 3
A95: 2023-09-23 | C95: CV202306 | D95: 0 | E95: ='2023'!E100 -> 0
A96: 2023-09-24 | C96: CV202306 | D96: 0 | E96: ='2023'!E101 -> 0
A97: 2023-09-25 | C97: CV202306 | D97: 91 | E97: ='2023'!E102 -> 0
A98: 2023-09-26 | C98: CV202306 | D98: 35 | E98: ='2023'!E103 -> 2
A99: 2023-09-27 | C99: CV202306 | D99: 42 | E99: ='2023'!E104 -> 0
A100: 2023-09-28 | C100: CV202306 | D100: 42 | E100: ='2023'!E105 -> 0
A101: 2023-09-29 | C101: CV202306 | D101: 48 | E101: ='2023'!E106 -> 4
A102: 2023-09-30 | C102: CV202306 | D102: 0 | E102: ='2023'!E107 -> 0
A103: 2023-10-01 | C103: CV202310 | D103: 0 | E103: ='2023'!E108 -> 0
A104: 2023-10-02 | C104: CV202310 | D104: 46 | E104: ='2023'!E109 -> 0
A105: 2023-10-03 | C105: CV202310 | D105: 0 | E105: ='2023'!E110 -> 0
A106: 2023-10-04 | C106: CV202310 | D106: 109 | E106: ='2023'!E111 -> 0
A107: 2023-10-05 | C107: CV202310 | D107: 33 | E107: ='2023'!E112 -> 1
A108: 2023-10-06 | C108: CV202310 | D108: 50 | E108: ='2023'!E113 -> 592
A109: 2023-10-07 | C109: CV202310 | D109: 0 | E109: ='2023'!E114 -> 0
A110: 2023-10-08 | C110: CV202310 | D110: 0 | E110: ='2023'!E115 -> 0
A111: 2023-10-09 | C111: CV202310 | D111: 82 | E111: ='2023'!E116 -> 0
A112: 2023-10-10 | C112: CV202310 | D112: 28 | E112: ='2023'!E117 -> 0
A113: 2023-10-11 | C113: CV202310 | D113: 21 | E113: ='2023'!E118 -> 0
A114: 2023-10-12 | C114: CV202310 | D114: 20 | E114: ='2023'!E119 -> 0
A115: 2023-10-13 | C115: CV202310 | D115: 38 | E115: ='2023'!E120 -> 0
A116: 2023-10-14 | C116: CV202310 | D116: 0 | E116: ='2023'!E121 -> 0
A117: 2023-10-15 | C117: CV202310 | D117: 0 | E117: ='2023'!E122 -> 0
A118: 2023-10-16 | C118: CV202310 | D118: 27 | E118: ='2023'!E123 -> 0
A119: 2023-10-17 | C119: CV202310 | D119: 45 | E119: ='2023'!E124 -> 0
A120: 2023-10-18 | C120: CV202310 | D120: 20 | E120: ='2023'!E125 -> 0
A121: 2023-10-19 | C121: CV202310 | D121: 14 | E121: ='2023'!E126 -> 0
A122: 2023-10-20 | C122: CV202310 | D122: 27 | E122: ='2023'!E127 -> 0
A123: 2023-10-21 | C123: CV202310 | D123: 0 | E123: ='2023'!E128 -> 0
A124: 2023-10-22 | C124: CV202310 | D124: 0 | E124: ='2023'!E129 -> 0
A125: 2023-10-23 | C125: CV202310 | D125: 59 | E125: ='2023'!E130 -> 0
A126: 2023-10-24 | C126: CV202310 | D126: 1336 | E126: ='2023'!E131 -> 0
A127: 2023-10-25 | C127: CV202310 | D127: 1272 | E127: ='2023'!E132 -> 0
A128: 2023-10-26 | C128: CV202310 | D128: 1990 | E128: ='2023'!E133 -> 0
A129: 2023-10-27 | C129: CV202310 | D129: 2226 | E129: ='2023'!E134 -> 0
A130: 2023-10-28 | C130: CV202310 | D130: 0 | E130: ='2023'!E135 -> 0
A131: 2023-10-29 | C131: CV202310 | D131: 0 | E131: ='2023'!E136 -> 0
A132: 2023-10-30 | C132: CV202310 | D132: 1632 | E132: ='2023'!E137 -> 0
A133: 2023-10-31 | C133: CV202310 | D133: 4811 | E133: ='2023'!E138 -> 0
A134: 2023-11-01 | C134: CV202310 | D134: 0 | E134: ='2023'!E139 -> 0
A135: 2023-11-02 | C135: CV202310 | D135: 2473 | E135: ='2023'!E140 -> 0
A136: 2023-11-03 | C136: CV202310 | D136: 5 | E136: ='2023'!E141 -> 0
A137: 2023-11-04 | C137: CV202310 | D137: 0 | E137: ='2023'!E142 -> 0
A138: 2023-11-05 | C138: CV202310 | D138: 0 | E138: ='2023'!E143 -> 0
A139: 2023-11-06 | C139: CV202310 | D139: 3560 | E139: ='2023'!E144 -> 0
A140: 2023-11-07 | C140: CV202310 | D140: 8016 | E140: ='2023'!E145 -> 0
A141: 2023-11-08 | C141: CV202310 | D141: 1908 | E141: ='2023'!E146 -> 0
A142: 2023-11-09 | C142: CV202310 | D142: 1664 | E142: ='2023'!E147 -> 0
A143: 2023-11-10 | C143: CV202310 | D143: 1698 | E143: ='2023'!E148 -> 0
A144: 2023-11-11 | C144: CV202310 | D144: 0 | E144: ='2023'!E149 -> 0
A145: 2023-11-12 | C145: CV202310 | D145: 0 | E145: ='2023'!E150 -> 0
A146: 2023-11-13 | C146: CV202310 | D146: 1392 | E146: ='2023'!E151 -> 0
A147: 2023-11-14 | C147: CV202310 | D147: 611 | E147: ='2023'!E152 -> 0
A148: 2023-11-15 | C148: CV202310 | D148: 697 | E148: ='2023'!E153 -> 0
A149: 2023-11-16 | C149: CV202310 | D149: 678 | E149: ='2023'!E154 -> 0
A150: 2023-11-17 | C150: CV202310 | D150: 784 | E150: ='2023'!E155 -> 0
A151: 2023-11-18 | C151: CV202310 | D151: 0 | E151: ='2023'!E156 -> 0
A152: 2023-11-19 | C152: CV202310 | D152: 0 | E152: ='2023'!E157 -> 0
A153: 2023-11-20 | C153: CV202310 | D153: 641 | E153: ='2023'!E158 -> 0
A154: 2023-11-21 | C154: CV202310 | D154: 641 | E154: ='2023'!E159 -> 0
A155: 2023-11-22 | C155: CV202310 | D155: 407 | E155: ='2023'!E160 -> 0
A156: 2023-11-23 | C156: CV202310 | D156: 438 | E156: ='2023'!E161 -> 0
A157: 2023-11-24 | C157: CV202310 | D157: 237 | E157: ='2023'!E162 -> 0
A158: 2023-11-25 | C158: CV202310 | D158: 0 | E158: ='2023'!E163 -> 0
A159: 2023-11-26 | C159: CV202310 | D159: 0 | E159: ='2023'!E164 -> 0
A160: 2023-11-27 | C160: CV202310 | D160: 297 | E160: ='2023'!E165 -> 0
A161: 2023-11-28 | C161: CV202310 | D161: 458 | E161: ='2023'!E166 -> 0
A162: 2023-11-29 | C162: CV202310 | D162: 180 | E162: ='2023'!E167 -> 0
A163: 2023-11-30 | C163: CV202310 | D163: 161 | E163: ='2023'!E168 -> 0
A164: 2023-12-01 | C164: CV202310 | D164: 21 | E164: ='2023'!E169 -> 0
A165: 2023-12-02 | C165: CV202310 | D165: 0 | E165: ='2023'!E170 -> 0
A166: 2023-12-03 | C166: CV202310 | D166: 0 | E166: ='2023'!E171 -> 0
A167: 2023-12-04 | C167: CV202310 | D167: 485 | E167: ='2023'!E172 -> 0
A168: 2023-12-05 | C168: CV202310 | D168: 114 | E168: ='2023'!E173 -> 0
A169: 2023-12-06 | C169: CV202310 | D169: 130 | E169: ='2023'!E174 -> 0
A170: 2023-12-07 | C170: CV202310 | D170: 103 | E170: ='2023'!E175 -> 0
A171: 2023-12-08 | C171: CV202310 | D171: 150 | E171: ='2023'!E176 -> 0
A172: 2023-12-09 | C172: CV202310 | D172: 0 | E172: ='2023'!E177 -> 0
A173: 2023-12-10 | C173: CV202310 | D173: 0 | E173: ='2023'!E178 -> 0
A174: 2023-12-11 | C174: CV202310 | D174: 121 | E174: ='2023'!E179 -> 0
A175: 2023-12-12 | C175: CV202310 | D175: 173 | E175: ='2023'!E180 -> 0
A176: 2023-12-13 | C176: CV202310 | D176: 94 | E176: ='2023'!E181 -> 0
A177: 2023-12-14 | C177: CV202310 | D177: 101 | E177: ='2023'!E182 -> 0
A178: 2023-12-15 | C178: CV202310 | D178: 94 | E178: ='2023'!E183 -> 0
A179: 2023-12-16 | C179: CV202310 | D179: 0 | E179: ='2023'!E184 -> 0
A180: 2023-12-17 | C180: CV202310 | D180: 0 | E180: ='2023'!E185 -> 0
A181: 2023-12-18 | C181: CV202310 | D181: 215 | E181: ='2023'!E186 -> 1
A182: 2023-12-19 | C182: CV202310 | D182: 68 | E182: ='2023'!E187 -> 0
A183: 2023-12-20 | C183: CV202310 | D183: 98 | E183: ='2023'!E188 -> 2057
A184: 2023-12-21 | C184: CV202310 | D184: 60 | E184: ='2023'!E189 -> 1782
A185: 2023-12-22 | C185: CV202310 | D185: 87 | E185: ='2023'!E190 -> 1
A186: 2023-12-23 | C186: CV202310 | D186: 0 | E186: ='2023'!E191 -> 0
A187: 2023-12-24 | C187: CV202310 | D187: 0 | E187: ='2023'!E192 -> 0
A188: 2023-12-25 | C188: CV202310 | D188: 0 | E188: ='2023'!E193 -> 0
A189: 2023-12-26 | C189: CV202310 | D189: 0 | E189: ='2023'!E194 -> 0
A190: 2023-12-27 | C190: CV202310 | D190: 213 | E190: ='2023'!E195 -> 5
A191: 2023-12-28 | C191: CV202310 | D191: 0 | E191: ='2023'!E196 -> 0
A192: 2023-12-29 | C192: CV202310 | D192: 136 | E192: ='2023'!E197 -> 1
A193: 2023-12-30 | C193: CV202310 | D193: 0 | E193: ='2023'!E198 -> 0
A194: 2023-12-31 | C194: CV202310 | D194: 0 | E194: ='2023'!E199 -> 0
A195: 2024-01-01 | C195: CV202310 | D195: 0 | E195: ='2023'!E200 -> 0
A196: 2024-01-02 | C196: CV202310 | D196: =[1]JANVIER!$F$4 -> 97 | E196: ='2023'!E201 -> 0
A197: 2024-01-03 | C197: CV202310 | D197: =[1]JANVIER!$F$5 -> 0 | E197: ='2023'!E202 -> 667
A198: 2024-01-04 | C198: CV202310 | D198: =[1]JANVIER!$F$6 -> 87 | E198: ='2023'!E203 -> 1972
A199: 2024-01-05 | C199: CV202310 | D199: =[1]JANVIER!$F$7 -> 26 | E199: ='2023'!E204 -> 2
A200: 2024-01-06 | C200: CV202310 | D200: =+[1]JANVIER!$F$8 -> 0 | E200: ='2023'!E205 -> 0
... 391 more rows
